{"text_format":"1","workbook":"xlsx","n_sheets":8,"sheets":["Voorpagina","Storings overzicht RWS","Drip's RWS","Spitsstroken","VRI's RWS","Kantelwals borden","VRI's Den Haag","Totaal overzicht"],"not_rendered":{"charts":0,"images":6,"macros":1,"external_links":0,"defined_names":8,"comments":1,"pivot_tables":0},"unopened":[],"bounds":{"document_bytes":16777216,"sheet_cells":100000,"rows_first":2000,"rows_last":500,"rows_between":2000,"halvings":0,"cell_chars":16384,"cell_head_chars":4096},"cells_cut":0,"cells_raw":0,"read":"whole","date_system":"1900"}

{"sheet":"Voorpagina","index":0,"n_rows":0,"n_cols":0,"rows_kept":0,"cut":false,"hidden":true,"merged":[]}

{"sheet":"Storings overzicht RWS","index":1,"n_rows":43,"n_cols":16,"rows_kept":43,"cut":false,"hidden":false,"merged":[[3,2,4,11],[3,15,4,15]]}
[null,null,null,"In storing",null,null,null,{"$f":"NOW()","v":"2021-03-02T13:45:27.050"}]
[null,null,null,"In storing"]
[]
[null,null,"Uit staande storingen van objecten Rijks Waterstaat - ",null,null,null,null,null,null,null,null,null,null,null,null,{"$f":"NOW()","v":"2021-03-02T13:45:27.050"}]
[]
[null,"In storing","Locatie","Weg\nnummer/naam","Richting","Hm","DVK\nletter","Drip naam",null,"In storing","Locatie","CI nummer NIS","IV nummer (VICnet)","KWC-nummer ","iVRI-nummer ","Naam TopDesk-MM 4-11-2020 ivm CHARM-DYNAC"]
[null,"In Storing","A20 Li 28,52 ","A20","Li",28.52,null,"BD A20L 28,520 (dBD48)",null,"In Storing","A16 R 21,7",10005279,"IV708106","VRI_000029",null,"8106_VRI_A16L_kruising busbaan"]
[null,"In Storing","A20 Re 22,67 ","A20","Re",22.67,null,"BD A20R 22,670 (dBD34)",null,"In Storing","N3 9,63",10005280,"IV708109","VRI_000014",null,"8109_VRI_A16Lc_Afrit20_s-Gravendeel"]
[null,"In Storing","Europaweg APMT2","N15","Re",null,null,"BD Europaweg APMT (dBD145)",null,"In Storing","N44/N14 10,8",10009069,"IV708125","VRI_000023",null,"8125_VRI_N44_Zijdeweg"]
[null,"In Storing","N218 Li 11,9 ","N218","Li",11.9,null,"BD N218L 11,900 (dBD54)",null,"In Storing","N915 24,9",10005305,"IV708114","VRI_000009",null,"8114_VRI_N915_De-Helling"]
[null,"In Storing","N255 Re 13,750","N255","Re",13.75,null,"BD N255R 13,750 (dBD22)"]
[null,"In Storing","N57 Li 22,900","N57","Li",22.9,null,"BD N57L 22,900 (dBD68)"]
[null,"In Storing","N57 Li 56,785 ","N57","Li",56.784999999999997,null,"BD N57L 56,785 (dBD10)"]
[null,"In Storing","N57 Li 6,090","N57","Li",6.09,null,"BD N57L 6,090 (dBD53)"]
[null,"In Storing","N57 Li 62,860","N57","Li",62.86,null,"BD N57L 62,860 (dBD15)"]
[null,"In Storing","N57 Re 47,725 ","N57","Re",47.725000000000001,null,"BD N57R 47,725 (dBD3)"]
[null,"In Storing","N57 Re 59,670","N57","Re",59.67,null,"BD N57R 59,670 (dBD11)"]
[null,"In Storing","N57 Re 65,275 ","N57","Re",65.275000000000006,null,"BD N57L 65,275 (dBD17)"]
[null,"In Storing","N59 Li 17,7 ","N59","Li",17.7,null,"BD N59L 17,700 (dBD30)"]
[null,"In Storing","N59 Re 48,9 ","N59","Re",48.9,null,"BD N59R 48,900 (dBD152)"]
[null,"In Storing","Reeweg   ","Reeweg",null,null,null,"Reeweg gem. Rtd.-Pernis (dAA)"]
[]
[]
[]
[]
[]
[]
[]
[]
[]
[]
[]
[]
[]
[]
[]
[null,"In storing","Locatie","Weg nummer","Richting",null,null,"Spitsstrook naam",null,"In storing","Locatie","Weg nummer","Richting","HM","DVK","Kantelwals bord naam"]
[null,"In Storing","A12 Li","A12","Li",null,null,"A12 Li Gouda - Zoetermeer",null,"In Storing","A15 Li 42,670 ","A15","Li","42,670",null,"MUS-A15L-42,880"]
[null,"In Storing","A12 Re","A12","Re",null,null,"Zoetermeer - Gouda",null,"In Storing","A15 Li 43,010 ","A15","Li","43,010",null,"MUS-A15L-43,227"]
[null,"In Storing","A13 HRL","A13","HRL",null,null,"A13 HRL Berkel en Rodenrijs - Delft-Zuid",null,"In Storing","A20 Re 37,290 ","A20","Re","37,290",null,"RP 5 A20 L 37,400 MB"]
[null,"In Storing","A15 Li","A15","Li",null,null,"A15 Li welplaatweg",null,"In Storing","A20 Re 38,300 ","A20","Re","38,300",null,"RP 4 A20 38,200 BBL"]
[null,"In Storing","A15 Re","A15","Re",null,null,"A15 re Welplaatweg",null,"In Storing","A27 Li 37,115 ","A27","Li","37,115",null,"RP 1 27 36 930 MB R A01"]
[null,"In Storing","A27 Re","A27","Re",null,null,"A27 Re Gorinchem - Noordeloos"]

{"sheet":"Drip's RWS","index":2,"n_rows":201,"n_cols":10,"rows_kept":201,"cut":false,"hidden":true,"merged":[[3,7,4,7],[3,8,4,8],[3,9,4,9],[0,0,1,0],[0,1,1,6],[3,0,4,0],[3,1,4,1],[3,2,4,2],[3,3,4,3],[3,4,4,4],[3,5,4,5],[3,6,4,6]]}
[null,"Bij aan of afmelden storing Drip,\nklik in de betreffende cel onder de knop \"In storing\"."]
[]
["Sorteren","Sorteren","Sorteren",null,null,null,"Sorteren","Sorteren"]
["In storing","Locatie","Weg\nnummer/naam","Richting","Hm","DVK\nletter","Drip naam","Drip nummer",null,"Beheerder"]
[]
["In Storing","A20 Li 28,52 ","A20","Li",28.52,null,"BD A20L 28,520 (dBD48)","dBD48",48,"RWS"]
["In Storing","A20 Re 22,67 ","A20","Re",22.67,null,"BD A20R 22,670 (dBD34)","dBD34",34,"RWS"]
["In Storing","Europaweg APMT2","N15","Re",null,null,"BD Europaweg APMT (dBD145)","dBD145",145,"RWS"]
["In Storing","N218 Li 11,9 ","N218","Li",11.9,null,"BD N218L 11,900 (dBD54)","dBD54",54,"RWS"]
["In Storing","N255 Re 13,750","N255","Re",13.75,null,"BD N255R 13,750 (dBD22)","dBD22",22,"RWS"]
["In Storing","N57 Li 22,900","N57","Li",22.9,null,"BD N57L 22,900 (dBD68)","dBD68",68,"RWS"]
["In Storing","N57 Li 56,785 ","N57","Li",56.784999999999997,null,"BD N57L 56,785 (dBD10)","dBD10",10,"RWS"]
["In Storing","N57 Li 6,090","N57","Li",6.09,null,"BD N57L 6,090 (dBD53)","dBD53",53,"RWS"]
["In Storing","N57 Li 62,860","N57","Li",62.86,null,"BD N57L 62,860 (dBD15)","dBD15",15,"RWS"]
["In Storing","N57 Re 47,725 ","N57","Re",47.725000000000001,null,"BD N57R 47,725 (dBD3)","dBD3",3,"RWS"]
["In Storing","N57 Re 59,670","N57","Re",59.67,null,"BD N57R 59,670 (dBD11)","dBD11",11,"RWS"]
["In Storing","N57 Re 65,275 ","N57","Re",65.275000000000006,null,"BD N57L 65,275 (dBD17)","dBD17",17,"RWS"]
["In Storing","N59 Li 17,7 ","N59","Li",17.7,null,"BD N59L 17,700 (dBD30)","dBD30",30,"RWS"]
["In Storing","N59 Re 48,9 ","N59","Re",48.9,null,"BD N59R 48,900 (dBD152)","dBD152",152,"RWS"]
["In Storing","Reeweg   ","Reeweg",null,null,null,"Reeweg gem. Rtd.-Pernis (dAA)","dAA","","RWS"]
[null,"A12 Li 9,61 ","A12","Li",9.61,null,"D+ A12L 9,610 (dBD190)","dBD190",190,"RWS"]
[null,"A12 Re 4,9 ","A12","Re",4.9000000000000004,null,"D+ A12R 4,900 (dBD176)","dBD176",176,"RWS"]
[null,"A13 Re 15,800","A13","Re","15,800",null,"BD A13R 15,800 (dBD32)","dBD32",32,"RWS"]
[null,"A15  49,5 x","A15",null,49.5,"x","D+ A15x49,5 H'vliet par (dBD136)","dBD136",136,"RWS"]
[null,"A15 Li 101,38 ","A15","Li",101.38,null,"D+ A15L 101,380 (dBD187)","dBD187",187,"RWS"]
[null,"A15 Li 41,23 ","A15","Li",41.23,null,"BD A15L 41,230 (dBD141)","dBD141",141,"RWS"]
[null,"A15 Li 46,1 y","A15","Li",46.1,"y","BD A15y 46,100 Botlekweg (dBD67)","dBD67",67,"RWS"]
[null,"A15 Li 48,69 ","A15","Li",48.69,null,"A15L 48,690 (R 4+5) (dBD144)","dBD144",144,"RWS"]
[null,"A15 Li 48,69 ","A15","Li",48.69,null,"A15L 48,690 (R1t/m3) )dBD143)","dBD143",143,"RWS"]
[null,"A15 Li 49,49 ","A15","Li",49.49,null,"D+ A15L 49,490 (dBD142)","dBD142",142,"RWS"]
[null,"A15 Li 53,2 ","A15","Li",53.2,null,"BD A15L 53,200 (dBD119)","dBD119",119,"RWS"]
[null,"A15 Li 58,15 ","A15","Li",58.15,null,"BD A15L 58,150 (dBD130)","dBD130",130,"RWS"]
[null,"A15 Li 58,3 n","A15","Li",58.3,"n","BD A15n 58,300 (dBD131)","dBD131",131,"RWS"]
[null,"A15 Li 61,98 y","A15","Li",61.98,"y","BD A15y 61,980 (dBD73)","dBD73",73,"RWS"]
[null,"A15 Li 62,835 y","A15","Li",62.835000000000001,"y","BD A15y 62,835 (dBD43)","dBD43",43,"RWS"]
[null,"A15 Li 65,784 ","A15","Li",65.784000000000006,null,"BD A15L 65,784 (dBD41)","dBD41",41,"RWS"]
[null,"A15 Li 71,445 ","A15","Li",71.444999999999993,null,"BD A15L 71,445 (dBD40)","dBD40",40,"RWS"]
[null,"A15 Li 71,6 ","A15","Li",71.599999999999994,null,"D+ A15L 71,600 (dBD175)","dBD175",175,"RWS"]
[null,"A15 Li 80,3 ","A15","Li",80.3,null,"BD A15L 80,300 (dBD148)","dBD148",148,"RWS"]
[null,"A15 Re 33,4 ","A15","Re",33.4,null,"BD A15R 33,400 (dBD64)","dBD64",64,"RWS"]
[null,"A15 Re 42,67 ","A15","Re",42.67,null,"D+ A15R 42,670 (dBD161)","dBD161",161,"RWS"]
[null,"A15 Re 43,57 ","A15","Re",43.57,null,"A15R 43,570 (R1t/m3) (dBD162)","dBD162",162,"RWS"]
[null,"A15 Re 43,57 ","A15","Re",43.57,null,"A15R 43,570 (R4 + 5) (dBD163)","dBD163",163,"RWS"]
[null,"A15 Re 47,54 ","A15","Re",47.54,null,"D+ A15R 47,540 H'vliet (dBD134)","dBD134",134,"RWS"]
[null,"A15 Re 48,1 ","A15","Re",48.1,null,"BD A15R 48,100 (dBD135)","dBD135",135,"RWS"]
[null,"A15 Re 52,26 x","A15","Re",52.26,"x","BD A15x 52,260 (dBD80)","dBD80",80,"RWS"]
[null,"A15 Re 55,82 x","A15","Re",55.82,"x","BD A15x 55,820 (dBD127)","dBD127",127,"RWS"]
[null,"A15 Re 56,35 ","A15","Re",56.35,null,"BD A15R 56,350 (dBD129)","dBD129",129,"RWS"]
[null,"A15 Re 60,35 ","A15","Re",60.35,null,"BD A15R 60,350 (dBD137)","dBD137",137,"RWS"]
[null,"A15 Re 60,85 ","A15","Re",60.85,null,"D+ A15R60,850 B'drecht ( dBD139)","dBD139",139,"RWS"]
[null,"A15 Re 61,975 ","A15","Re",61.975000000000001,null,"BD A15R 61,975 (dBD38)","dBD38",38,"RWS"]
[null,"A15 Re 63,35 m","A15","Re",63.35,"m","BD A15m 63,350 (dBD71)","dBD71",71,"RWS"]
[null,"A15 Re 64,8 ","A15","Re",64.8,null,"BD A15R 64,800 (dBD159)","dBD159",159,"RWS"]
[null,"A15 Re 76,87 ","A15","Re",76.87,null,"BD A15R 76,870 (dBD151)","dBD151",151,"RWS"]
[null,"A16 Li 17,97 ","A16","Li",17.97,null,"BD A16L 17,970 (dBD122)","dBD122",122,"RWS"]
[null,"A16 Li 18,4 ","A16","Li",18.399999999999999,null,"D+ A16L 18,400 (dBD173)","dBD173",173,"RWS"]
[null,"A16 Li 22,19 y","A16","Li",22.19,"y","BD A16y 22,190 (dBD83)","dBD83",83,"RWS"]
[null,"A16 Li 24 y","A16","Li",24,"y","BD A16y 24,000 (dBD103)","dBD103",103,"RWS"]
[null,"A16 Li 25,385 ","A16","Li",25.385000000000002,null,"BD A16L 25,385 (dBD47)","dBD47",47,"RWS"]
[null,"A16 Li 29,64 ","A16","Li",29.64,null,"BD A16L 29,640 (dBD39)","dBD39",39,"RWS"]
[null,"A16 Li 29,8 ","A16","Li",29.8,null,"BD A16L 29,800 (dBD171)","dBD171",171,"RWS"]
[null,"A16 Li 40,1 ","A16","Li",40.1,null,"BD A16L 40,100 (dBD104)","dBD104",104,"RWS"]
[null,"A16 Re 16,455 ","A16","Re",16.454999999999998,null,"BD A16R 16,455 (dBD45)","dBD45",45,"RWS"]
[null,"A16 Re 18,18 x","A16","Re",18.18,"x","BD A16x 18,180 (dBD46)","dBD46",46,"RWS"]
[null,"A16 Re 20,235 x","A16","Re",20.234999999999999,"x","BD A16x 20,235 (dBD79)","dBD79",79,"RWS"]
[null,"A16 Re 22,64 ","A16","Re",22.64,null,"BD A16R 22,640 (dBD42)","dBD42",42,"RWS"]
[null,"A16 Re 23,3 r","A16","Re",23.3,"r","BD A16r 23,300 (dBD70)","dBD70",70,"RWS"]
[null,"A16 Re 32,875 ","A16","Re",32.875,null,"BD A16R 32,875 (dBD154)","dBD154",154,"RWS"]
[null,"A16 Re 36,9 ","A16","Re",36.9,null,"BD A16R 36,900 (dBD150)","dBD150",150,"RWS"]
[null,"A20 Li 14,05 ","A20","Li",14.05,null,"BD A20L 14,050 (dBD105)","dBD105",105,"RWS"]
[null,"A20 Li 25,44 ","A20","Li",25.44,null,"BD A20L 25,440 (dBD33)","dBD33",33,"RWS"]
[null,"A20 Li 30,42 ","A20","Li",30.42,null,"BD A20L 30,420 (dBD74)","dBD74",74,"RWS"]
[null,"A20 Li 31,66 ","A20","Li",31.66,null,"BD A20L 31,660 (dBD78)","dBD78",78,"RWS"]
[null,"A20 Li 38,1 ","A20","Li",38.1,null,"D+ A20L 38,100 (dBD168)","dBD168",168,"RWS"]
[null,"A20 Li 38,385 ","A20","Li",38.384999999999998,null,"BD A20L 38,385 (dBD31)","dBD31",31,"RWS"]
[null,"A20 Re 22,3 ","A20","Re",22.3,null,"D+ A20R 22,300 (dBD166)","dBD166",166,"RWS"]
[null,"A20 Re 26,5 ","A20","Re",26.5,null,"D+ A20R 26,500 (dBD177)","dBD177",177,"RWS"]
[null,"A20 Re 26,73 ","A20","Re",26.73,null,"BD A20R 26,730 (dBD76)","dBD76",76,"RWS"]
[null,"A20 Re 28,2 ","A20","Re",28.2,null,"BD A20R 28,200 (dBD77)","dBD77",77,"RWS"]
[null,"A20 Re 29,69 ","A20","Re",29.69,null,"BD A20R 29,690 (dBD75)","dBD75",75,"RWS"]
[null,"A20 Re 33,835 ","A20","Re",33.835000000000001,null,"BD A20R 33,835 (dBD49)","dBD49",49,"RWS"]
[null,"A20 Re 44,1 ","A20","Re",44.1,null,"BD A20R 44,100 (dBD126)","dBD126",126,"RWS"]
[null,"A27 Re 34,08 ","A27","Re",34.08,null,"D+ A27R 34,080 (dBD188)","dBD188",188,"RWS"]
[null,"A29 Li 11,445 ","A29","Li",11.445,null,"BD A29L 11,445 (dBD132)","dBD132",132,"RWS"]
[null,"A29 Li 11,725 ","A29","Li",11.725,null,"D+ A29L11,725 (dBD133)","dBD133",133,"RWS"]
[null,"A29 Li 17,93 ","A29","Li",17.93,null,"BD A29L 17,930 (dBD149)","dBD149",149,"RWS"]
[null,"A29 Re 93,62 ","A29","Re",93.62,null,"BD A29R 93,620 (dBD180)","dBD180",180,"RWS"]
[null,"A4 Li 211,78 ","A4","Li",211.78,null,"BD A4L 211,780 (dBD153)","dBD153",153,"RWS"]
[null,"A4 Li 39 ","A4","Li",39,null,"BD A4L 39,000 (dBD181)","dBD181",181,"RWS"]
[null,"A4 Li 50,6 ","A4","Li",50.6,null,"D+ A4L 50,600 (dBD170)","dBD170",170,"RWS"]
[null,"A4 Li 70,95 ","A4","Li",70.95,null,"BD A4L 79,950 (dBD120)","dBD120",120,"RWS"]
[null,"A4 Li 71,55 ","A4","Li",71.55,null,"A4L TB 71,550 Schiedam (dAS)","dAS",null,"RWS"]
[null,"A4 Re 15,75 ","A4","Re",15.75,null,"BD A4R 15,750 (dBD92)","dBD92",92,"RWS"]
[null,"A4 Re 16,895 ","A4","Re",16.895,null,"D+ A4R 16,895 (dBD172)","dBD172",172,"RWS"]
[null,"A4 Re 22 ","A4","Re",22,null,"BD A4R 22,000 (dBD91)","dBD91",91,"RWS"]
[null,"A4 Re 30,99 ","A4","Re",30.99,null,"D+ A4R 30,990 (dBD189)","dBD189",189,"RWS"]
[null,"A4 Re 41,9 ","A4","Re",41.9,null,"D+ A4R 41,900 (dBD169)","dBD169",169,"RWS"]
[null,"A4 Re 45,5 ","A4","Re",45.5,null,"BD A4R 45,500 (dBD94)","dBD94",94,"RWS"]
[null,"A4 Re 73,84 ","A4","Re",73.84,null,"BD A4R 73,840 (dBD69)","dBD69",69,"RWS"]
[null,"A44 Li 20,9 ","A44","Li",20.9,null,"BD A44L 20,900 (dBD183)","dBD183",183,"RWS"]
[null,"A44 Re 16,7 ","A44","Re",16.7,null,"D+ A44R 16,700 (dBD179)","dBD179",179,"RWS"]
[null,"Australieweg   ","Australieweg",null,null,null,"BD Z'meer - Australiew (dBD97)","dBD97",97,"RWS"]
[null,"Aveling   ","Aveling",null,null,null,"BD Hoogvliet - Aveling (dBD108)","dBD108",108,"RWS"]
[null,"Baljuwlaan   ","Baljuwlaan",null,null,null,"BD Spijk - Baljuwlaan (dBD106)","dBD106",106,"RWS"]
[null,"Botlekstraat   ","Botlekstraat",null,null,null,"BD R'dam - Botlekstr (dBD116)","dBD116",116,"RWS"]
[null,"Botlekweg   ","Botlekweg",null,null,null,"BD R'dam - Botlekweg (dBD117)","dBD117",117,"RWS"]
[null,"Chemieweg   ","Chemieweg",null,null,null,"BD R'dam - Chemieweg (dBD115)","dBD115",115,"RWS"]
[null,"Europaweg   ","Europaweg",null,null,null,"BD Z'meer - Europw (dBD160)","dBD160",160,"RWS"]
[null,"Groene Kruisweg   ","Groene Kruisweg",null,null,null,"BD H'vliet - Gr Kruisweg (dBD109)","dBD109",109,"RWS"]
[null,"Groene Kruisweg   ","Groene Kruisweg",null,null,null,"BD Spijk - Gr Kruisweg (dBD112)","dBD112",112,"RWS"]
[null,"Haagweg   ","Haagweg",null,null,null,"BD Leiden - Haagweg (dBD95)","dBD95",95,"RWS"]
[null,"Kanaalweg   ","Kanaalweg",null,null,null,"BD H'sluis - Kanaalw (dBD110)","dBD110",110,"RWS"]
[null,"N11  11,93 ","N11",null,11.93,null,"BD N11R 11,930 (dBD157)","dBD157",157,"RWS"]
[null,"N11 Li 14,17 ","N11","Li",14.17,null,"BD N11L 14,170 (dBD158)","dBD158",158,"RWS"]
[null,"N15 Li 23,7 ","N15","Li",23.7,null,"BD 23,700 (dBD57)","dBD57",57,"RWS"]
[null,"N15 Re  ","N15","Re",null,null,"BD Coloradoweg APMT (dBD146)","dBD146",146,"RWS"]
[null,"N15 Re 19,075 f","N15","Re",19.074999999999999,"f","BD N15f 19,075 (dBD140)","dBD140",140,"RWS"]
[null,"N15 Re 24,35 ","N15","Re",24.35,null,"BD N15R 24,350 (dBD63)","dBD63",63,"RWS"]
[null,"N211 Re 21,29 ","N211","Re",21.29,null,"BD N211R 21,290 (dBD56)","dBD56",56,"RWS"]
[null,"N218 Li 1,5 ","N218","Li",1.5,null,"BD N218L 1,500 (dBD59)","dBD59",59,"RWS"]
[null,"N256 Li 20,22 ","N256","Li",20.22,null,"BD N256L 20,220 (dBD164)","dBD164",164,"RWS"]
[null,"N256 Li 22,54 ","N256","Li",22.54,null,"BD N256L 22,540 (dBD165)","dBD165",165,"RWS"]
[null,"N256 Re 12,408 ","N256","Re",12.407999999999999,null,"BD N256R 12,408 (dBD26)","dBD26",26,"RWS"]
[null,"N256 Re 13,04 ","N256","Re",13.04,null,"BD N256R 13,040 (dBD50)","dBD50",50,"RWS"]
[null,"N256 Re 9,155 ","N256","Re",9.1549999999999994,null,"BD N256R 9,155 (dBD25)","dBD25",25,"RWS"]
[null,"N3 Li 3,02 ","N3","Li",3.02,null,"BD N3L 3,020 (dBD155)","dBD155",155,"RWS"]
[null,"N3 Re 4,9 ","N3","Re",4.9000000000000004,null,"BD N3R 4,900 (dBD156)","dBD156",156,"RWS"]
[null,"N44 Re 26,15 ","N44","Re",26.15,null,"D+ N44R 26,150 (dBD186)","dBD186",186,"RWS"]
[null,"N440 Li 1,8 ","N440","Li",1.8,null,"N440L1,800 L'scheidingsw (dAP)","dAP","","RWS"]
[null,"N57 Li 3,300","N57","Li",3.3,null,"BD N57L 3,300 (dBD118)","dBD118",118,"RWS"]
[null,"N57 Li 59,66 ","N57","Li",59.66,null,"BD N57L 59,660 (dBD12)","dBD12",12,"RWS"]
[null,"N57 Li 65,275 ","N57","Li",65.275000000000006,null,"BD N57L 65,275 (dBD18)","dBD18",18,"RWS"]
[null,"N57 Li 66,445 ","N57","Li",66.444999999999993,null,"BD N57L 66,445 (dBD21)","dBD21",21,"RWS"]
[null,"N57 Li 67,540","N57","Li",67.540000000000006,null,"BD N57L 67,540 (dBD23)","dBD23",23,"RWS"]
[null,"N57 Re 54,515 ","N57","Re",54.515000000000001,null,"BD N57R 54,515 (dBD5)","dBD5",5,"RWS"]
[null,"N57 Re 55,038 ","N57","Re",55.037999999999997,null,"BD N57R 55,038 (dBD7)","dBD7",7,"RWS"]
[null,"N57 Re 56,785 ","N57","Re",56.784999999999997,null,"BD N57R 56,785 (dBD9)","dBD9",9,"RWS"]
[null,"N57 Re 62,855 ","N57","Re",62.854999999999997,null,"BD N57R 62,855 (dBD16)","dBD16",16,"RWS"]
[null,"Nijverheidsweg   ","Nijverheidsweg",null,null,null,"BD H'sluis -N'heidsw (dBD111)","dBD111",111,"RWS"]
[null,"Oostweg   ","Oostweg",null,null,null,"BD Z'meer - Oostweg (dBD96)","dBD96",96,"RWS"]
[null,"Oude Maasweg   ","Oude Maasweg",null,null,null,"BD R'dam - Oude Maasweg (dBD113)","dBD113",113,"RWS"]
[null,"Pr. Beatrixlaan   ","Pr. Beatrixlaan",null,null,null,"BD R'wijk - Pr Beatrixln(dBD55)","dBD55",55,"RWS"]
[null,"Schenkelweg   ","Schenkelweg",null,null,null,"BD Spijk - Schenkelweg (dBD107)","dBD107",107,"RWS"]
[null,"Vaanweg   ","Vaanweg",null,null,null,"Vaanweg Uit gem. Rtd. (dAC)","dAC","","RWS"]
[null,"Welplaatweg   ","Welplaatweg",null,null,null,"BD R'dam - Welplaatweg (dBD114)","dBD114",114,"RWS"]
[null,null,null,null,null,null,null,null,""]
[null,null,null,null,null,null,null,null,""]
[null,null,null,null,null,null,null,null,""]
[null,null,null,null,null,null,null,null,""]
[null,null,null,null,null,null,null,null,""]
[null,null,null,null,null,null,null,null,""]
[null,null,null,null,null,null,null,null,""]
[null,null,null,null,null,null,null,null,""]
[null,null,null,null,null,null,null,null,""]
[null,null,null,null,null,null,null,null,""]
[null,null,null,null,null,null,null,null,""]
[null,null,null,null,null,null,null,null,""]
[null,null,null,null,null,null,null,null,""]
[null,null,null,null,null,null,null,null,""]
[null,null,null,null,null,null,null,null,""]
[null,null,null,null,null,null,null,null,""]
[null,null,null,null,null,null,null,null,""]
[null,null,null,null,null,null,null,null,""]
[null,null,null,null,null,null,null,null,""]
[null,null,null,null,null,null,null,null,""]
[null,null,null,null,null,null,null,null,""]
[null,null,null,null,null,null,null,null,""]
[null,null,null,null,null,null,null,null,""]
[null,null,null,null,null,null,null,null,""]
[null,null,null,null,null,null,null,null,""]
[null,null,null,null,null,null,null,null,""]
[null,null,null,null,null,null,null,null,""]
[null,null,null,null,null,null,null,null,""]
[null,null,null,null,null,null,null,null,""]
[]
[]
[]
[]
[]
[]
[]
[]
[]
[]
[]
[]
[]
[]
[]
[]
[]
[]
[]
[]
[]
[]
[]
[]
[]
[]
[null,{"$f":"C201&\" \"&D201&\" \"&E201&\" \"&F201","v":"   "}]

{"sheet":"Spitsstroken","index":3,"n_rows":16,"n_cols":9,"rows_kept":16,"cut":false,"hidden":true,"merged":[[3,7,4,7],[3,8,4,8],[3,4,4,4],[3,5,4,5],[0,0,1,0],[0,1,1,6],[3,0,4,0],[3,1,4,1],[3,2,4,2],[3,3,4,3],[3,6,4,6]]}
[null,"Bij aan of afmelden storing Spitsstrook,\nklik in de betreffende cel onder de knop \"In storing\"."]
[]
["Sorteren","Sorteren","Sorteren",null,null,null,"Sorteren"]
["In storing","Locatie","Weg nummer","Richting",null,null,"Spitsstrook naam","HM\nvan","HM\ntot"]
[]
["In Storing",{"$f":"C6&\" \"&D6","v":"A12 Li"},"A12","Li",null,null,"A12 Li Gouda - Zoetermeer","A12 Li 29,350","A12 Li 12,260"]
["In Storing",{"$f":"C7&\" \"&D7","v":"A12 Re"},"A12","Re",null,null,"Zoetermeer - Gouda","A12 Re 15,770","A12 Re 26,260"]
["In Storing",{"$f":"C8&\" \"&D8","v":"A13 HRL"},"A13","HRL",null,null,"A13 HRL Berkel en Rodenrijs - Delft-Zuid","A13 Li 15,810","A13 Li 12,700"]
["In Storing",{"$f":"C9&\" \"&D9","v":"A15 Li"},"A15","Li",null,null,"A15 Li welplaatweg","A15 Li 42,670","A15 Li 39,660"]
["In Storing",{"$f":"C10&\" \"&D10","v":"A15 Re"},"A15","Re",null,null,"A15 re Welplaatweg","A15 Re 40,160","A15 Re 42,410"]
["In Storing",{"$f":"C11&\" \"&D11","v":"A27 Re"},"A27","Re",null,null,"A27 Re Gorinchem - Noordeloos","A27 Re 37,630","A27 re 42,380"]
[null,{"$f":"C12&\" \"&D12","v":"A12 Li"},"A12","Li",null,null,"A12 Li Voorburg","A4 Re 45,580h","A12 Li 5,225"]
[null,{"$f":"C13&\" \"&D13","v":"A15 Re"},"A15","Re",null,null,"A15 re Wijngaarden","A15 Re 79,420","A15 Re 79,730"]
[null,{"$f":"C14&\" \"&D14","v":"A20 Li"},"A20","Li",null,null,"A20 Li R'dam Pr. Alexander-knp. Terbregseplein","A20 Li 37,800","A20 Li 35,520"]
[null,{"$f":"C15&\" \"&D15","v":"S102 Li"},"S102","Li",null,null,"Wisselstrook Spijkenisserbrug","S102 Li 0,410q","S102 Li 1,430q"]
[null,{"$f":"C16&\" \"&D16","v":"S102 Re"},"S102","Re",null,null,"Wisselstrook Spijkenisserbrug","S102 Re 0,410p","S102 Re 1,430y"]

{"sheet":"VRI's RWS","index":4,"n_rows":60,"n_cols":78,"rows_kept":60,"cut":false,"hidden":true,"merged":[[0,0,1,0],[3,0,4,0],[3,1,4,1],[3,4,4,4],[0,1,1,6],[3,5,4,5],[3,6,4,6],[3,7,4,7],[3,2,4,2],[3,3,4,3],[3,8,4,8],[3,9,4,9],[3,10,4,10],[3,11,4,11],[3,12,4,12],[3,13,4,13],[3,14,4,14],[3,15,4,15],[3,16,4,16],[3,17,4,17],[3,18,4,18],[3,19,4,19],[3,20,4,20],[3,21,4,21],[3,22,4,22],[3,23,4,23],[3,24,4,24],[3,25,4,25],[3,27,4,27],[3,26,4,26],[3,28,4,28],[3,29,4,29],[3,30,4,30],[3,31,4,31],[3,32,4,32],[3,33,4,33],[3,34,4,34],[3,35,4,35],[3,36,4,36],[3,37,4,37],[3,38,4,38],[3,39,4,39],[3,40,4,40],[3,41,4,41],[3,42,4,42],[3,43,4,43],[3,44,4,44],[3,45,4,45],[3,46,4,46],[3,47,4,47],[3,48,4,48],[3,49,4,49],[3,50,4,50],[3,51,4,51],[3,52,4,52],[3,53,4,53],[3,54,4,54],[3,55,4,55],[3,56,4,56],[3,57,4,57],[3,58,4,58],[3,59,4,59],[3,60,4,60],[3,61,4,61],[3,62,4,62],[3,63,4,63],[3,64,4,64],[3,65,4,65],[3,66,4,66],[3,67,4,67],[3,68,4,68],[3,74,4,74],[3,75,4,75],[3,76,4,76],[3,77,4,77],[3,69,4,69],[3,70,4,70],[3,71,4,71],[3,72,4,72],[3,73,4,73]]}
[null,"Bij aan of afmelden storing VRI,\nklik in de betreffende cel onder de knop \"In storing\"."]
[]
["Sorteren","Sorteren",null,null,null,null,"Sorteren"]
["In storing","Locatie","CI nummer NIS","IV nummer (VICnet)","KWC-nummer ","iVRI-nummer ","Naam TopDesk-MM 4-11-2020 ivm CHARM-DYNAC","VRI-nummer in archive","Omschrijving Locatie","Stichtings\njaar","weg\nnunmmer (A- of N-)","Hm","kruisende straat (straatnaam)","Plaatsnaam","GPS coordinaten (google maps)","Google Maps","G-schijf","eigenaar (regio)","eigenaar (district)","beheerder","Contact\npersoon","leverancier VRI/TLC","Installatie\nnummer Leverancier","Leverancier ITS platform","ITS regeling","Leverancier RIS","aansluitende wegbeheerders","type kruispunt/ kruispuntvorm","Onderhouds\ncontract","koppelingen met andere VRI's (VRI nummer benoemen)","VRI aangesloten op NMS","IVERA (ja/nee/versie nummer/IVERA-pin)","type modem/verbinding (GPRS/telefoon/UMTS)","conclusie CVMS","VRI aangesloten op KWC","schrijft regel programma\nMV-files weg en is er een licentie","File based\nV-Log","Streaming V-Log","vervangings\njaar (gepland)","Prioritering","koppelingen met andere systemen (bijvoorbeeld TDI of Tunnelsysteem)","Is de VRI onderdeel van scenario's","Noemenswaardig ontwikkelingen in de omgeving","vrije opmerkingen/overige bijzonderheden (bijvoorbeeld geen RWS-C-regeling)","Geeltijden conform laatste richtlijn (2016)","Ontruimingstijden conform richtlijn 321","Kruispunttkening op schaal (DWG)","Schematische kruispuntplaatje","functionele specificatie/ ontwerpnota","Listing/programmacode","Cocon-bestand","OTTO-bestand","Transyt-bestand","VISSIM-bestand","Manuele ontruimingstijdenbereking incl tekening","IVERA-invulformulier","Datum laatste monitoring",2010,2011,2012,2013,2014,2015,2016,2017,2018,2019,2020,2021,2022,2023,2024,2025,2026,2027,2028,2029,2030]
[]
[null,{"$f":"IF(K6=\"\",\"\",K6&\" \"&L6)","v":"057 23,8"},10005043,"IV708307","VRI_000057",null,"8307_VRI_N57_Vissersweg",null,"VRI307 N57 Goedereede",2011,"057",23.8,"Vissersweg","Goedereede","51.815698, 3.982902",{"$f":"HYPERLINK(\"http://maps.google.com/maps?q=\" & O6,\"View on Google Map\")","v":"View on Google Map"},"G-schijf","ZD",null,"VC ZWN","Jimmy Peters / Johan Groenewold","siemens",null,null,null,null,null,null,null,null,null,"2.10",null,null,null,"v",null,null,null,"Middel",null,null,null,"VOORZIEN VAN TELEFOONLIJN",null,null,"v","v","v","v","x","x","x","x","x","v",null,null,"V",null,null,null,null,"QS",null,null,null,"U",null,null,null,"QS",null,"V",null,"U"]
[null,{"$f":"IF(K7=\"\",\"\",K7&\" \"&L7)","v":"057 39,9"},10005218,"IV708308","VRI_000056",null,"8308_VRI_N57_Kabbelaarsbank",null,"VRI308 N57 Kabbelaarsbank",2010,"057",39.9,"Kabbelaarsbank","Goedereede","51.761707, 3.854231",{"$f":"HYPERLINK(\"http://maps.google.com/maps?q=\" & O7,\"View on Google Map\")","v":"View on Google Map"},"G-schijf","ZD",null,"VC ZWN","Jimmy Peters / Johan Groenewold","siemens",null,null,null,null,null,null,null,null,null,"2.10",null,null,null,"v",null,null,null,"Laag",null,null,null,"VOORZIEN VAN TELEFOONLIJN",null,null,"v","v","v","x","x","x","x","x","x","v",null,"V"]
[null,{"$f":"IF(K8=\"\",\"\",K8&\" \"&L8)","v":"057 48.1"},null,"IV708309","VRI_000055",null,"8309_VRI_N57_N59",null,"VRI309 N57 N59 (Stoofweg)",2010,"057","48.1","N59/N651 (Stoofweg)","Serooskerke","51.700182, 3.808648",{"$f":"HYPERLINK(\"http://maps.google.com/maps?q=\" & O8,\"View on Google Map\")","v":"View on Google Map"},"G-schijf","ZD",null,"VC ZWN","Jimmy Peters / Johan Groenewold","Siemens",null,null,null,null,null,null,null,null,null,"2.10",null,null,null,null,null,null,null,"Middel",null,null,null,"VOORZIEN VAN TELEFOONLIJN",null,null,"v","v","v",null,null,null,null,null,null,"v",null,"V"]
[null,{"$f":"IF(K9=\"\",\"\",K9&\" \"&L9)","v":"057 69,78"},10005044,"IV708310","VRI_000064",null,"8310_VRI_N57_Parallelweg",null,"VRI310 N57 Resto Vrouwenpolder",2011,"057",69.78,"Parallelweg","Vrouwenpolder","51.585327, 3.628466",{"$f":"HYPERLINK(\"http://maps.google.com/maps?q=\" & O9,\"View on Google Map\")","v":"View on Google Map"},"G-schijf","ZD",null,"VC ZWN","Jimmy Peters / Johan Groenewold","siemens",null,null,null,null,null,null,null,null,null,"2.10",null,null,null,"v",null,null,null,"Laag",null,null,null,"VOORZIEN VAN TELEFOONLIJN",null,null,"v","v","v","v","x","x","x","x","x","v",null,null,"V",null,null,null,null,null,"QS",null,null,null,null,null,null,"QS",null,"V"]
[null,{"$f":"IF(K10=\"\",\"\",K10&\" \"&L10)","v":"059 0,5"},10005222,"IV708312",null,null,"8312_VRI_N59_Laan-van-Sint-Hillaire",null,"VRI312 N59 Laan van St. Hillaire","2003/2004","059",0.5,"Laan van St. Hillaire","Zierikzee","51.655048, 3.913521",{"$f":"HYPERLINK(\"http://maps.google.com/maps?q=\" & O10,\"View on Google Map\")","v":"View on Google Map"},"G-schijf","ZD",null,"VC ZWN","Jimmy Peters / Johan Groenewold","peek",null,null,null,null,null,null,null,null,null,"j",null,null,null,"x",null,null,null,"Laag",null,null,null,"VOORZIEN VAN TELEFOONLIJN",null,null,"x","v","v","x","x","x","x","x","x","x",null,null,null,"U",null,null,null,null,null,"V"]
[null,{"$f":"IF(K11=\"\",\"\",K11&\" \"&L11)","v":"059 16,7"},10005223,"IV708301","VRI_000062",null,"8301_VRI_N59_Weg-naar-de-Val",null,"VRI301 N59 N256 De Tol",2011,"059",16.7,"De Tol, N256 (Weg naar de Val)","Zierikzee","51.650252, 3.943560",{"$f":"HYPERLINK(\"http://maps.google.com/maps?q=\" & O11,\"View on Google Map\")","v":"View on Google Map"},"G-schijf","ZD",null,"VC ZWN","Jimmy Peters / Johan Groenewold","siemens",null,null,null,null,null,null,null,null,"ja","2.10","UMTS",null,null,null,null,null,null,"Middel",null,null,null,"VOORZIEN VAN TELEFOONLIJN",null,null,"v","v","v","v","x","x","x","x","x","x",null,null,"V",null,null,null,"QS",null,null,"U",null,null,null,"QS",null,null,null,"V/U"]
[null,{"$f":"IF(K12=\"\",\"\",K12&\" \"&L12)","v":"059 20,75"},10005224,"IV708313",null,null,"8313_VRI_N59_Middenweg",null,"VRI313 N59 Stolpweg Middenweg",2003,"059",20.75,"Stolpweg/Middenweg","Nieuwerkerk","51.645738, 4.000009",{"$f":"HYPERLINK(\"http://maps.google.com/maps?q=\" & O12,\"View on Google Map\")","v":"View on Google Map"},"G-schijf","ZD",null,"VC ZWN","Jimmy Peters / Johan Groenewold","TPA",null,null,null,null,null,null,null,null,"n","j",null,null,null,"x",null,null,null,"Middel",null,null,null,"VOORZIEN VAN TELEFOONLIJN",null,null,"x","v","x","v","x","x","x","x","x","x",null,null,null,null,null,null,"U",null,null,"V"]
[null,{"$f":"IF(K13=\"\",\"\",K13&\" \"&L13)","v":"059 22,85"},10018120,"IV708302","VRI_000063",null,"8302_VRI_N59_Molenweg",null,"VRI302 N59 Molenweg",2012,"059",22.85,"Molenweg","Oosterland","51.653518, 4.028367",{"$f":"HYPERLINK(\"http://maps.google.com/maps?q=\" & O13,\"View on Google Map\")","v":"View on Google Map"},"G-schijf","ZD",null,"VC ZWN","Jimmy Peters / Johan Groenewold","siemens",null,null,null,null,null,null,null,null,"ja","2.10","UMTS",null,null,"v",null,null,null,"Laag",null,null,null,null,null,null,"v","v","v","x","x","v","x","x","x","x",null,null,null,"V","QS",null,null,null,null,null,null,"QS",null,null,null,null,null,null,"V/QS"]
[null,{"$f":"IF(K14=\"\",\"\",K14&\" \"&L14)","v":"059 24"},10018119,"IV708303","VRI_000061",null,"8303_VRI_N59_Bredeweg",null,"VRI303 N59 Bredeweg",2012,"059",24,"Bredeweg","Oosterland","51.657442, 4.042662",{"$f":"HYPERLINK(\"http://maps.google.com/maps?q=\" & O14,\"View on Google Map\")","v":"View on Google Map"},"G-schijf","ZD",null,"VC ZWN","Jimmy Peters / Johan Groenewold","siemens",null,null,null,null,null,null,null,null,"ja","2.10","UMTS",null,null,null,null,null,null,"Laag",null,null,null,null,null,null,"v","v","v","x","x","v","x","x","x","x",null,null,null,"V","QS",null,null,null,null,null,null,"QS",null,null,null,null,null,null,"V/QS"]
[null,{"$f":"IF(K15=\"\",\"\",K15&\" \"&L15)","v":"059 36,5"},10005225,"IV708304",null,null,"8304_VRI_N59_N215",null,"VRI304 N59 N215 (Tonisseweg)",2006,"059",36.5,"N215 (Tonisseweg)","Oude Tonge","51.698521, 4.202157",{"$f":"HYPERLINK(\"http://maps.google.com/maps?q=\" & O15,\"View on Google Map\")","v":"View on Google Map"},"G-schijf","ZD",null,"VC ZWN","Jimmy Peters / Johan Groenewold","peek",null,null,null,null,null,null,null,null,null,"n",null,null,null,"x",null,null,null,"Middel",null,null,null,"VOORZIEN VAN TELEFOONLIJN",null,null,"x","v","x","x","x","x","x","x","x","x",null,null,null,null,null,"U",null,null,null,"V","U"]
[null,{"$f":"IF(K16=\"\",\"\",K16&\" \"&L16)","v":"059 38,4"},10005124,"IV708305",null,null,"8305_VRI_N59_De-Tille",null,"VRI305 N59 verzorgingsplaats De Tille","2008/2009","059",38.4,"De Tille (verzorgingsplaats)","Oude Tonge","51.696199, 4.229540",{"$f":"HYPERLINK(\"http://maps.google.com/maps?q=\" & O16,\"View on Google Map\")","v":"View on Google Map"},"G-schijf","ZD",null,"VC ZWN","Jimmy Peters / Johan Groenewold","siemens",null,null,null,null,null,null,null,null,null,"j",null,null,null,"v",null,null,null,"Laag",null,null,null,"VOORZIEN VAN TELEFOONLIJN",null,null,"v","v","v","x","x","x","x","x","x","x",null,null,null,null,null,null,"QS",null,null,null,"U",null,null,"QS",null,"V"]
[null,{"$f":"IF(K17=\"\",\"\",K17&\" \"&L17)","v":"059 43,48"},10005048,"IV708306","VRI_000060",null,"8306_VRI_N59_Schaapsweg",null,"VRI306 N59 N498 (Schaapsweg)","2008/2009","059",43.48,"Schaapweg, N498 (Groeneweg)","Achthuizen","51.699859, 4.293525",{"$f":"HYPERLINK(\"http://maps.google.com/maps?q=\" & O17,\"View on Google Map\")","v":"View on Google Map"},"G-schijf","ZD","N","VC ZWN","Jimmy Peters / Johan Groenewold","siemens",null,null,null,null,null,null,null,null,null,"j",null,null,null,"v",null,null,null,"Middel",null,null,null,"VOORZIEN VAN TELEFOONLIJN",null,null,"v","v","v","x","x","x","x","x","x","x",null,null,null,null,"QS",null,null,null,"U",null,"U",null,"QS",null,null,"V","U"]
[null,{"$f":"IF(K18=\"\",\"\",K18&\" \"&L18)","v":"059 9,1"},10005049,"IV708311","VRI_000058",null,"8311_VRI_N59_N653",null,"VRI311 N57 N653 (Delingsdijk)",2010,"059",9.1,"Delingsdijk, N653","Serooskerke","51.698446, 3.814952",{"$f":"HYPERLINK(\"http://maps.google.com/maps?q=\" & O18,\"View on Google Map\")","v":"View on Google Map"},"G-schijf","ZD",null,"VC ZWN","Jimmy Peters / Johan Groenewold","siemens",null,null,null,null,null,null,null,null,null,"2.10",null,null,null,"v",null,null,null,"Laag",null,null,null,"VOORZIEN VAN TELEFOONLIJN",null,null,"v","v","v","x","x","x","x","x","x","v",null,"V",null,null,null,"QS",null,null,null,null,null,null,"QS",null,null,null,"V"]
[null,{"$f":"IF(K19=\"\",\"\",K19&\" \"&L19)","v":"A15 0,3"},10005068,"IV708107","VRI_000028",null,"8107_VRI_A15_Aansluiting23_Papendrecht (N3)",null,"A15 / N3",2005,"A15",0.3,null,"Papendrecht","51.839247, 4.712394","View on Google Map","G-schijf","RWS WNZ","Zuid","VC ZWN","Johan Groenewold","Peek Traffic",null,null,null,null,"provincie Z-H",null,"VODK",null,"ja","2.1","glasvezel","goed","ja","ja",null,null,2020,"Hoog",null,"ja",null,null,null,null,"v","v","v","v","v",null,null,null,null,"v",null,null,"QS",null,"U",null,"QS",null,"V"]
[null,{"$f":"IF(K20=\"\",\"\",K20&\" \"&L20)","v":"A15L 25,8"},10005307,"IV708111","VRI_000007",null,"8111_VRI_A15c_Afrit22_Alblasserdam",null,"kp40 afrit A15 (noordelijke rijbaan) / Edisonweg)",2009,"A15L",25.8,null,"Alblasserdam","51.851999, 4.677260","View on Google Map","G-schijf","RWS WNZ","Zuid","VC ZWN","Johan Groenewold","Siemens",null,null,null,null,"gem. Alblasserdam",null,"VODK","IV708115/116","ja","2.1","glasvezel","goed","ja","ja",null,null,2024,"Middel",null,"ja",null,null,null,null,"v","v","v","v","v",null,null,null,null,"v",null,null,null,null,"QS",null,null,null,"U",null,null,null,"QS",null,null,"V","U"]
["In Storing",{"$f":"IF(K21=\"\",\"\",K21&\" \"&L21)","v":"A16 R 21,7"},10005279,"IV708106","VRI_000029",null,"8106_VRI_A16L_kruising busbaan",null,"A16 Brienenoordbrug busbaan",2008,"A16 R",21.7,null,"Rotterdam","51.898117, 4.549169","View on Google Map","G-schijf","RWS WNZ","Zuid","VC ZWN","Johan Groenewold","Vialis/TPA",null,null,null,null,"n.v.t.",null,"VODK",null,"ja","2.1","UMTS","goed","ja","ja",null,null,2023,"Laag",null,"ja",null,"conflict met busbaan",null,null,"v","v","v","v","v",null,null,null,null,"v",null,null,null,null,null,null,null,null,null,null,null,null,null,null,"V"]
[null,{"$f":"IF(K22=\"\",\"\",K22&\" \"&L22)","v":"A29 "},null,"IV708193","VRI_000070",null,"8193_VRI_A29_Westelijke bussluis Numansdorp",null,"A29Re Westelijke bussluis Numansdorp",2020,"A29",null,null,"Hoogvliet","51.860432, 4.342319",null,null,"RWS WNZ","Zuid","VC ZWN","Johan Groenewold","Swarco",null,null,null,null,"gem. Numansdorp",null,"VODK","IV708193","ja","3.01","glasvezel","goed","ja","ja","ja","ja",2035,"Laag",null,"nee",null,"bussluis toerit A29","v",null,"v","v","v","v","-","-","-","-","-","v"]
[null,{"$f":"IF(K23=\"\",\"\",K23&\" \"&L23)","v":"A29 "},null,"IV708194","VRI_000072",null,"8194_VRI_A29_Oostelijke bussluis Numansdorp",null,"A29Li Oostelijke bussluis Numansdorp",2020,"A29",null,null,"Spijkenisse","51.858629, 4.337944",null,null,"RWS WNZ","Zuid","VC ZWN","Johan Groenewold","Swarco",null,null,null,null,"gem. Numansdorp",null,"VODK","IV708194","ja","3.01","glasvezel","goed","ja","ja","ja","ja",2035,"Laag",null,"nee",null,"bussluis afrit A29","v",null,"v","v","v","v","-","-","-","-","-","v"]
[null,{"$f":"IF(K24=\"\",\"\",K24&\" \"&L24)","v":"A44 "},null,"IV708117","VRI_000054",null,"8117_VRI_A44_Aansluiting7_Oegstgeest",null,"A44 Oegstgeest (Flora Holland)",2016,"A44",null,null,"Oegstgeest",null,null,null,"RWS WNZ","Noord","VC ZWN","Johan Groenewold","Vialis",null,null,null,null,"Gem. Oegstgeest",null,"VODK","IV708117","ja","2.1","UMTS","goed","ja","ja",null,null,2030,"Laag",null,null,null,null,null,null,"v","v","v","v","v",null,null,"v",null,"v",null,null,null,null,null,null,null,"V",null,null,null,"QS",null,null,null,"U",null,null,null,"QS"]
[null,{"$f":"IF(K25=\"\",\"\",K25&\" \"&L25)","v":"A4L 0,4"},10005263,"IV708102","VRI_000032",null,"8102_VRI_A4Lc_Afrit6a_Zoeterwoude-Rijndijk",null,"A4 / N11 (oostelijk kruispunt)",2013,"A4L",0.4,null,"Leiderdorp","52.139561, 4.510364","View on Google Map","G-schijf","RWS WNZ","Noord","VC ZWN","Johan Groenewold","Ko Hartog",null,null,null,null,"n.v.t.",null,"VODK","IV708101","ja","2.1","glasvezel","goed","ja","ja",null,null,2028,"Middel",null,"ja",null,null,null,null,"v","v","v","v","v",null,null,null,null,"v",null,null,null,null,"P",null,null,null,"QS",null,null,null,"U",null,null,null,"QS",null,null,"V","U"]
[null,{"$f":"IF(K26=\"\",\"\",K26&\" \"&L26)","v":"A4R 0,4"},10005263,"IV708101","VRI_000031",null,"8101_VRI_A4Ra_Afrit6a_Zoeterwoude-Rijndijk",null,"A4 / N11 (westelijk kruispunt)",2013,"A4R",0.4,null,"Leiderdorp","52.140643, 4.506052","View on Google Map","G-schijf","RWS WNZ","Noord","VC ZWN","Johan Groenewold","Ko Hartog",null,null,null,null,"n.v.t.",null,"VODK","IV708102","ja","2.1","glasvezel","goed","ja","ja",null,null,2028,"Middel",null,"ja",null,null,null,null,"v","v","v","v","v",null,null,null,null,"v",null,null,null,null,"P",null,null,null,"QS",null,null,null,"U",null,null,null,"QS",null,null,"V","U"]
[null,{"$f":"IF(K27=\"\",\"\",K27&\" \"&L27)","v":"N11 R 1,6"},10005264,"IV708104","VRI_30 of VRI_38",null,"8104_VRI_N11_Burgemeester Smeetsweg",null,"N11 / Bsmeetsweg",2013,"N11 R",1.6,null,"Zoeterwoude","52.134258, 4.526926","View on Google Map","G-schijf","RWS WNZ","Noord","VC ZWN","Johan Groenewold","Siemens",null,null,null,null,"gem. Zoeterwoude",null,"VODK",null,"ja","2.1","glasvezel","goed","ja","ja",null,null,2028,"Middel",null,"ja",null,null,null,null,"v","v","v","v","v",null,null,null,null,"v",null,null,null,null,"P",null,null,null,"U",null,null,null,"QS",null,null,null,"U",null,null,"V"]
[null,{"$f":"IF(K28=\"\",\"\",K28&\" \"&L28)","v":"N14 10,2"},10009070,"IV708126","VRI_000021","7AB2001E","8126_VRI_N14_Wittenburgerweg",null,"N14 / Wittenburgerweg",2004,"N14",10.199999999999999,null,"Wassenaar","52.109496, 4.352093","View on Google Map","G-schijf","RWS WNZ","Noord","VC ZWN","Johan Groenewold","Ko Hartog",null,null,null,null,"gem. Wassenaar",null,"VODK","IV708126","ja","2.1","UMTS","goed","ja","ja",null,null,2019,"Middel",null,"ja",null,null,null,null,"v","v","v","v","v",null,null,"v",null,"v",null,null,null,"U",null,null,null,null,"QS",null,"V",null,"U"]
[null,{"$f":"IF(K29=\"\",\"\",K29&\" \"&L29)","v":"N14 11,3"},10009061,"IV708123","VRI_000047","7AB20046","8123_VRI_N14_Bezuidenhoutseweg",null,"N14 / Bezuidenhoutseweg",2015,"N14",11.3,null,"Den Haag","52.101755, 4.363690","View on Google Map","G-schijf","RWS WNZ","Noord","VC ZWN","Johan Groenewold","Vialis",null,null,null,null,"gem. Den Haag",null,"VODK","IV708123","ja","2.1","UMTS","goed","ja","ja",null,null,2019,"Hoog","Sijtwendetunnel","ja",null,null,null,null,"v","v","v","v","v",null,null,"v",null,"v",null,null,null,"U",null,"U","V",null,"QS",null,null,"U",null,null,"QS",null,null,"U",null,null,"QS","V"]
[null,{"$f":"IF(K30=\"\",\"\",K30&\" \"&L30)","v":"N14 13"},10009072,"IV708122","VRI_000046",null,"8122_VRI_N14_Monsigneur-van-Steelaan",null,"N14 / M.v.Steelaan - Temucalaplein(Sytwende)",2015,"N14",13,null,"Leidschendam","52.088751, 4.376635","View on Google Map","G-schijf","RWS WNZ","Noord","VC ZWN","Johan Groenewold","Vialis",null,null,null,null,"gem. Leidschendam",null,"VODK","IV708122","ja","2.1","UMTS","goed","ja","ja",null,null,2019,"Hoog","Sijtwendetunnel","ja",null,null,null,null,"v","v","v","v","v",null,null,"v",null,"v",null,null,null,"U",null,"U","V",null,"QS",null,null,"U",null,null,"QS",null,null,"U",null,null,"QS","V"]
[null,{"$f":"IF(K31=\"\",\"\",K31&\" \"&L31)","v":"N14 13,5"},10009060,"IV708121","VRI_000045",null,"8121_VRI_N14_Prins-Bernardlaan",null,"N14 / Pr.Bernardlaan / Noordsingel",2015,"N14",13.5,null,"Leidschendam","52.085103, 4.379247","View on Google Map","G-schijf","RWS WNZ","Noord","VC ZWN","Johan Groenewold","Vialis",null,null,null,null,"gem. Leidschendam",null,"VODK","IV708121","ja","2.1","UMTS","goed","ja","ja",null,null,2019,"Hoog","Sijtwendetunnel","ja",null,null,null,null,"v","v","v","v","v",null,null,"v",null,"v",null,null,null,"U",null,"U","V",null,"QS",null,null,"U",null,null,"QS",null,null,"U",null,null,"QS","V"]
[null,{"$f":"IF(K32=\"\",\"\",K32&\" \"&L32)","v":"N14 15"},10009071,"IV708120","VRI_000044",null,"8120_VRI_A4a_Afrit8_Leidschendam",null,"N14 / aansluiting Leidschendam (westelijk krpt)",2015,"N14",15,null,"Leidschendam","52.074766, 4.393590","View on Google Map","G-schijf","RWS WNZ","Noord","VC ZWN","Johan Groenewold","Vialis",null,null,null,null,"gem. Leidschendam",null,"VODK","IV708120","ja","2.1","UMTS","goed","ja","ja",null,null,2019,"Hoog","Sijtwendetunnel","ja",null,null,null,null,"v","v","v","v","v",null,null,"v",null,"v",null,null,null,"U",null,"U","V",null,"QS",null,null,"U",null,null,"QS",null,null,"U",null,null,"QS","V"]
[null,{"$f":"IF(K33=\"\",\"\",K33&\" \"&L33)","v":"N14R 15,3"},10009067,"IV708103","VRI_000019",null,"8103_VRI_A4c_Afrit8_Leidschendam",null,"A4 / aansluiting Leidschendam (oostelijk krpt)",2012,"N14R",15.3,null,"Leidschendam","52.072426, 4.397112","View on Google Map","G-schijf","RWS WNZ","Noord","VC ZWN","Johan Groenewold","Siemens",null,null,null,null,"gem. Den Haag",null,"VODK",null,"ja","2.1","UMTS","goed","ja","ja",null,null,2019,"Hoog",null,"ja",null,null,null,null,"v","v","v","v","v",null,null,"v",null,"v",null,null,null,"P",null,"U",null,null,"U",null,null,"QS",null,null,"U",null,null,"QS","V",null,"U"]
[null,{"$f":"IF(K34=\"\",\"\",K34&\" \"&L34)","v":"N3 29,96"},10005295,"IV708108","VRI_000018",null,"8108_VRI_A16Ra_Afrit20_s-Gravendeel",null,"A16 / Rijksstraatweg",2019,"N3",29.96,null,"Dordrecht","51.772573, 4.648082","View on Google Map","G-schijf","RWS WNZ","Zuid","VC ZWN","Johan Groenewold","Dynniq",null,null,null,null,"gem. Dordrecht",null,"VODK","IV708109/110","ja","2.1","glasvezel","goed","ja","ja",null,null,2019,"Hoog",null,"ja",null,"C-Col","v","v","v","v","v","v","v",null,null,"v",null,"v",null,null,null,"QS",null,null,null,null,null,"V"]
[null,{"$f":"IF(K35=\"\",\"\",K35&\" \"&L35)","v":"N3 30,1"},10005071,"IV708110","VRI_000015",null,"8110_VRI_N3_Rijksstraatweg",null,"N217 / Rijksstraatweg",2019,"N3",30.1,null,"Dordrecht","51.772579, 4.646327","View on Google Map","G-schijf","RWS WNZ","Zuid","VC ZWN","Johan Groenewold","Dynniq",null,null,null,null,"provincie Z-H / gem. Dordrecht",null,"VODK","IV708108/109","ja","2.1","glasvezel","goed","ja","ja",null,null,2019,"Hoog",null,"ja",null,"C-Col","v",null,"v","v","v","v","v",null,null,"v",null,"v",null,null,null,"QS",null,null,null,null,null,"V"]
["In Storing",{"$f":"IF(K36=\"\",\"\",K36&\" \"&L36)","v":"N3 9,63"},10005280,"IV708109","VRI_000014",null,"8109_VRI_A16Lc_Afrit20_s-Gravendeel",null,"A16 / N3",2019,"N3",9.6300000000000008,null,"Dordrecht","51.772591, 4.650350","View on Google Map","G-schijf","RWS WNZ","Zuid","VC ZWN","Johan Groenewold","Dynniq",null,null,null,null,"n.v.t.",null,"VODK","IV708108/110","ja","2.1","glasvezel","goed","ja","ja",null,null,2019,"Hoog",null,"ja",null,"C-Col","v","v","v","v","v","v","v",null,null,"v",null,"v",null,null,null,"QS",null,null,null,null,null,"V"]
[null,{"$f":"IF(K37=\"\",\"\",K37&\" \"&L37)","v":"N44 21,7"},null,"IV708201","VRI_000037",null,"8201_VRI_A44_Rozenweg",null,"A44 N44 Rozenweg",2015,"N44",21.7,null,"Wassenaar","52.141611, 4.415250","View on Google Map",null,"Gem. Wassenaarr",null,"VC ZWN","Johan Groenewold","Dynniq",null,null,null,null,"gem. Wassenaar",null,"Wassenaar (wel melden via MKO)",null,"ja","3.01","UMTS","goed","ja","ja",null,null,2030,"Hoog",null,"ja",null,null,"v",null,"v","v","v","v","v",null,null,"v",null,"v",null,null,null,null,null,null,"V",null,"QS",null,null,"U",null,null,"QS",null,null,"U",null,null,"QS","V"]
[null,{"$f":"IF(K38=\"\",\"\",K38&\" \"&L38)","v":"N44 22,4"},null,"IV708202","VRI_000039",null,"8202_VRI_N44_Papeweg",null,"N44 Papeweg (N444) L.Kerkdam",2015,"N44",22.4,null,"Wassenaar","52.137803, 4.407008","View on Google Map",null,"Gem. Wassenaarr",null,"VC ZWN","Johan Groenewold","Dynniq",null,null,null,null,"gem. Wassenaar",null,"Wassenaar (wel melden via MKO)",null,"ja","3.01","UMTS","goed","ja","ja",null,null,2030,"Hoog",null,"ja",null,null,"v",null,"v","v","v","v","v",null,null,"v",null,"v",null,null,null,null,null,null,"V",null,"QS",null,null,"U",null,null,"QS",null,null,"U",null,null,"QS","V"]
[null,{"$f":"IF(K39=\"\",\"\",K39&\" \"&L39)","v":"N44 25,4"},null,"IV708203",null,null,"8203_VRI_N44_Houtlaan",null,"N44 Houtlaan Raaphorstlaan",2015,"N44",25.4,null,"Wassenaar","52.117449, 4.377403","View on Google Map",null,"Gemeente Wassenr",null,"VC ZWN","Johan Groenewold","Dynniq",null,"Dynniq","ImFlow","Dynniq","gem. Wassenaar",null,"Wassenaar (wel melden via MKO)",null,"ja",4,"4G","goed","ja","ja","ja","ja",2030,"Middel",null,"ja",null,"C-Col","v",null,"v","v","v","v","v",null,null,"v",null,"v",null,null,null,null,null,null,"V",null,"QS",null,null,"U",null,null,"QS",null,null,"U",null,null,"QS","V"]
[null,{"$f":"IF(K40=\"\",\"\",K40&\" \"&L40)","v":"N44 25,8"},null,"IV708204",null,null,"8204_VRI_N44_Van-der-Oudermeulenlaan",null,"N44 Van der Oudermeulenlaan",2015,"N44",25.8,null,"Wassenaar","52.115123, 4.373777","View on Google Map",null,"Gemeente Wassenr",null,"VC ZWN","Johan Groenewold","Dynniq",null,"Dynniq","ImFlow","Dynniq","gem. Wassenaar",null,"Wassenaar (wel melden via MKO)",null,"ja",4,"4G","goed","ja","ja","ja","ja",2030,"Middel",null,"ja",null,"C-Col","v",null,"v","v","v","v","v",null,null,"v",null,"v",null,null,null,null,null,null,"V",null,"QS",null,null,"U",null,null,"QS",null,null,"U",null,null,"QS","V"]
[null,{"$f":"IF(K41=\"\",\"\",K41&\" \"&L41)","v":"N44/N14 10,7"},10009068,"IV708124","VRI_000022",null,"8124_VRI_N44_N14",null,"N44 / N14 hoofd kruispunt",2019,"N44/N14",10.7,null,"Wassenaar","52.105478, 4.358364","View on Google Map","G-schijf","RWS WNZ","Noord","VC ZWN","Johan Groenewold","Swarco",null,"Swarco en Dynniq","Gouden Regeling + ImFlow","Dynniq","gem. Wassenaar",null,"VODK","IV708125","ja",4,"4G","goed","ja","ja","ja","ja",2034,"Middel",null,"ja",null,"CCOL","v",null,"v","v","v","v","v",null,null,"v",null,"v",null,null,null,null,"U",null,null,null,"QS",null,"V",null,"U"]
["In Storing",{"$f":"IF(K42=\"\",\"\",K42&\" \"&L42)","v":"N44/N14 10,8"},10009069,"IV708125","VRI_000023",null,"8125_VRI_N44_Zijdeweg",null,"N44 / N14 motel Bijhorst",2019,"N44/N14",10.8,null,"Wassenaar","52.104802, 4.359875","View on Google Map","G-schijf","RWS WNZ","Noord","VC ZWN","Johan Groenewold","Swarco",null,"Swarco en Dynniq","Gouden Regeling + ImFlow","Dynniq","gem. Wassenaar",null,"VODK","IV708124","ja",4,"4G","goed","ja","ja","ja","ja",2034,"Middel",null,"ja",null,"CCOL","v",null,"v","v","v","v","v",null,null,"v",null,"v",null,null,null,null,"U",null,null,null,"QS",null,"V",null,"U"]
[null,{"$f":"IF(K43=\"\",\"\",K43&\" \"&L43)","v":"N492 "},null,"IV708191",null,null,"8191_VRI_N492_Spijkenisserbrug vanaf Hoogvliet",null,"N492-S102 Spijkenisserbrug vanaf Hoogvliet",2017,"N492",null,null,"Hoogvliet","51.860432, 4.342319",null,null,"RWS WNZ","Zuid","VC ZWN","Johan Groenewold","Swarco",null,null,null,null,"gem. Hoogvliet",null,"VODK","IV708191","ja","3.01","glasvezel","goed","ja","ja","ja","ja",2032,"Laag",null,"nee",null,"buslicht voor Spijkenisserbrug","v",null,"-","v","-","-","-","-","-","-","-","v"]
[null,{"$f":"IF(K44=\"\",\"\",K44&\" \"&L44)","v":"N492 "},null,"IV708192",null,null,"8192_VRI_N492_Spijkenisserbrug vanaf Spijkenisse",null,"VRI192 N492-S102 Spijkenisserbrug vanaf Spijkenisse",2017,"N492",null,null,"Spijkenisse","51.858629, 4.337944",null,null,"RWS WNZ","Zuid","VC ZWN","Johan Groenewold","Swarco",null,null,null,null,"gem. Spijkenisse",null,"VODK","IV708192","ja","3.01","glasvezel","goed","ja","ja","ja","ja",2032,"Laag",null,"nee",null,"buslicht voor Spijkenisserbrug","v",null,"-","v","-","-","-","-","-","-","-","v"]
[null,{"$f":"IF(K45=\"\",\"\",K45&\" \"&L45)","v":"N915 22,1"},10005303,"IV708112","VRI_000010",null,"8112_VRI_N915c_Afrit21_Hendrik-Ido-ambacht",null,"kp34 afrit A15 (noordelijke rijbaan) / N915",2009,"N915",22.1,null,"Ridderkerk","51.858385, 4.6369","View on Google Map","G-schijf","RWS WNZ","Zuid","VC ZWN","Johan Groenewold","Siemens",null,null,null,null,"WSHD",null,"VODK",null,"ja","2.1","glasvezel","goed","ja","ja",null,null,2024,"Middel",null,"ja",null,null,null,null,"v","v","v","v","v",null,null,null,null,"v",null,null,null,null,"QS",null,null,null,"U",null,null,null,"QS",null,null,"V","U"]
[null,{"$f":"IF(K46=\"\",\"\",K46&\" \"&L46)","v":"N915 23,35"},10005304,"IV708113","VRI_000005",null,"8113_VRI_N915_Noordeinde",null,"kp36 N915 / Noordeinde (H.I.A.)",2009,"N915",23.35,null,"H.I. Ambacht","51.855452, 4.645668","View on Google Map","G-schijf","RWS WNZ","Zuid","VC ZWN","Johan Groenewold","Siemens",null,null,null,null,"H.I. Ambacht",null,"VODK",null,"ja","2.1","glasvezel","goed","ja","ja",null,null,2024,"Middel",null,"ja",null,null,null,null,"v","v","v","v","v",null,null,null,null,"v",null,null,null,null,"QS",null,null,null,"U",null,null,null,"QS",null,null,"V","U"]
["In Storing",{"$f":"IF(K47=\"\",\"\",K47&\" \"&L47)","v":"N915 24,9"},10005305,"IV708114","VRI_000009",null,"8114_VRI_N915_De-Helling",null,"kp37 N915 / De Helling",2009,"N915",24.9,null,"Alblasserdam","51.855183, 4.667183","View on Google Map","G-schijf","RWS WNZ","Zuid","VC ZWN","Johan Groenewold","Siemens",null,null,null,null,"gem. Alblasserdam",null,"VODK",null,"ja","2.1","glasvezel","goed","ja","ja",null,null,2024,"Middel",null,"ja",null,null,null,null,"v","v","v","v","v",null,null,null,null,"v",null,null,null,null,"QS",null,null,null,"U",null,null,null,"QS",null,null,"V","U"]
[null,{"$f":"IF(K48=\"\",\"\",K48&\" \"&L48)","v":"N915 25,65"},10009064,"IV708116","VRI_000008",null,"8116_VRI_N915a_Afrit22_Alblasserdam",null,"kp38 afrit A15 (zuidelijke rijbaan) / N915",2009,"N915",25.65,null,"Alblasserdam","51.849654, 4.678063","View on Google Map","G-schijf","RWS WNZ","Zuid","VC ZWN","Johan Groenewold","Siemens",null,null,null,null,"n.v.t.",null,"VODK","IV708111/115","ja","2.1","glasvezel","goed","ja","ja",null,null,2024,"Middel",null,"ja",null,null,null,null,"v","v","v","v","v",null,null,null,null,"v",null,null,null,null,"QS",null,null,null,"U",null,null,null,"QS",null,null,"V","U"]
[null,{"$f":"IF(K49=\"\",\"\",K49&\" \"&L49)","v":"N915 25,9"},10005306,"IV708115","VRI_000006",null,"8115_VRI_N915_Edisonweg",null,"kp39 N915 / Edisonweg",2009,"N915",25.9,null,"Alblasserdam","51.850207, 4.675264","View on Google Map","G-schijf","RWS WNZ","Zuid","VC ZWN","Johan Groenewold","Siemens",null,null,null,null,"n.v.t.",null,"VODK","IV708111/116","ja","2.1","glasvezel","goed","ja","ja",null,null,2024,"Middel",null,"ja",null,null,null,null,"v","v","v","v","v",null,null,null,null,"v",null,null,null,null,"QS",null,null,null,"U",null,null,null,"QS",null,null,"V","U"]
[null,{"$f":"IF(K50=\"\",\"\",K50&\" \"&L50)","v":"Rijks-\nstraatwg "},null,"IV708211",null,null,"8211_VRI_Rijksstraatweg_Pieter-Zeemanweg",null,"Rijksstraatweg - Pieter Zeemanweg",2020,"Rijks-\nstraatwg",null,null,"Dordrecht","51.7761532,4.6441396","View on Google Map",null,"Gemeente Dordrecht",null,"VC ZWN","Johan Groenewold","Vialis",null,null,null,null,"gem. Dordrecht",null,"Dordrecht (wel melden via MKO)",null,"ja","3.01","glasvezel","goed","ja","ja","???","???","2021 (door gem. dordrecht)","Middel","VRI-108/109/110","ja",null,"C-Col","v","v","v","v","v","v","v","v",null,null,null,"v"]
[]
[]
[]
[]
[null,null,null,null,null,null,null,null,null,null,null,null,null,null,null,null,null,null,null,null,null,null,null,null,null,null,null,null,null,null,null,null,null,null,null,null,null,null,null,null,null,null,null,null,null,null,null,null,null,null,null,null,null,null,null,null,null,null,{"$f":"#REF!","v":{"$error":"#REF!"}},{"$f":"#REF!","v":{"$error":"#REF!"}},{"$f":"#REF!","v":{"$error":"#REF!"}},{"$f":"#REF!","v":{"$error":"#REF!"}},{"$f":"#REF!","v":{"$error":"#REF!"}},{"$f":"#REF!","v":{"$error":"#REF!"}},{"$f":"#REF!","v":{"$error":"#REF!"}},{"$f":"#REF!","v":{"$error":"#REF!"}},{"$f":"#REF!","v":{"$error":"#REF!"}},{"$f":"#REF!","v":{"$error":"#REF!"}},{"$f":"#REF!","v":{"$error":"#REF!"}},{"$f":"#REF!","v":{"$error":"#REF!"}},{"$f":"#REF!","v":{"$error":"#REF!"}},{"$f":"#REF!","v":{"$error":"#REF!"}},{"$f":"#REF!","v":{"$error":"#REF!"}},{"$f":"#REF!","v":{"$error":"#REF!"}},{"$f":"#REF!","v":{"$error":"#REF!"}},{"$f":"#REF!","v":{"$error":"#REF!"}},{"$f":"#REF!","v":{"$error":"#REF!"}},{"$f":"#REF!","v":{"$error":"#REF!"}}]
[null,null,null,null,null,null,null,null,null,null,null,null,null,null,null,null,null,null,null,null,null,null,null,null,null,null,null,null,null,null,null,null,null,null,null,null,null,null,null,null,null,null,null,null,null,null,null,null,null,null,null,null,null,null,null,null,null,"QS",{"$f":"COUNTIF(BG46:BG54,$BF$56)","v":0},{"$f":"COUNTIF(BH46:BH54,$BF$56)","v":0},{"$f":"COUNTIF(BI46:BI54,$BF$56)","v":4},{"$f":"COUNTIF(BJ46:BJ54,$BF$56)","v":0},{"$f":"COUNTIF(BK46:BK54,$BF$56)","v":0},{"$f":"COUNTIF(BL46:BL54,$BF$56)","v":0},{"$f":"COUNTIF(BM46:BM54,$BF$56)","v":0},{"$f":"COUNTIF(BN46:BN54,$BF$56)","v":0},{"$f":"COUNTIF(BO46:BO54,$BF$56)","v":0},{"$f":"COUNTIF(BP46:BP54,$BF$56)","v":0},{"$f":"COUNTIF(BQ46:BQ54,$BF$56)","v":4},{"$f":"COUNTIF(BR46:BR54,$BF$56)","v":0},{"$f":"COUNTIF(BS46:BS54,$BF$56)","v":0},{"$f":"COUNTIF(BT46:BT54,$BF$56)","v":0},{"$f":"COUNTIF(BU46:BU54,$BF$56)","v":0},{"$f":"COUNTIF(BV46:BV54,$BF$56)","v":0},{"$f":"COUNTIF(BW46:BW54,$BF$56)","v":0},{"$f":"COUNTIF(BX46:BX54,$BF$56)","v":0},{"$f":"COUNTIF(BY46:BY54,$BF$56)","v":0},{"$f":"COUNTIF(BZ46:BZ54,$BF$56)","v":0}]
[null,null,null,null,null,null,null,null,null,null,null,null,null,null,null,null,null,null,null,null,null,null,null,null,null,null,null,null,null,null,null,null,null,null,null,null,null,null,null,null,null,null,null,null,null,null,null,null,null,null,null,null,null,null,null,null,null,"U",{"$f":"COUNTIF(BG46:BG54,$BF$57)","v":0},{"$f":"COUNTIF(BH46:BH54,$BF$57)","v":0},{"$f":"COUNTIF(BI46:BI54,$BF$57)","v":0},{"$f":"COUNTIF(BJ46:BJ54,$BF$57)","v":0},{"$f":"COUNTIF(BK46:BK54,$BF$57)","v":0},{"$f":"COUNTIF(BL46:BL54,$BF$57)","v":0},{"$f":"COUNTIF(BM46:BM54,$BF$57)","v":4},{"$f":"COUNTIF(BN46:BN54,$BF$57)","v":0},{"$f":"COUNTIF(BO46:BO54,$BF$57)","v":0},{"$f":"COUNTIF(BP46:BP54,$BF$57)","v":0},{"$f":"COUNTIF(BQ46:BQ54,$BF$57)","v":0},{"$f":"COUNTIF(BR46:BR54,$BF$57)","v":0},{"$f":"COUNTIF(BS46:BS54,$BF$57)","v":0},{"$f":"COUNTIF(BT46:BT54,$BF$57)","v":0},{"$f":"COUNTIF(BU46:BU54,$BF$57)","v":4},{"$f":"COUNTIF(BV46:BV54,$BF$57)","v":0},{"$f":"COUNTIF(BW46:BW54,$BF$57)","v":0},{"$f":"COUNTIF(BX46:BX54,$BF$57)","v":0},{"$f":"COUNTIF(BY46:BY54,$BF$57)","v":0},{"$f":"COUNTIF(BZ46:BZ54,$BF$57)","v":0}]
[null,null,null,null,null,null,null,null,null,null,null,null,null,null,null,null,null,null,null,null,null,null,null,null,null,null,null,null,null,null,null,null,null,null,null,null,null,null,null,null,null,null,null,null,null,null,null,null,null,null,null,null,null,null,null,null,null,"N",{"$f":"COUNTIF(BG46:BG54,$BF$58)","v":0},{"$f":"COUNTIF(BH46:BH54,$BF$58)","v":0},{"$f":"COUNTIF(BI46:BI54,$BF$58)","v":0},{"$f":"COUNTIF(BJ46:BJ54,$BF$58)","v":0},{"$f":"COUNTIF(BK46:BK54,$BF$58)","v":0},{"$f":"COUNTIF(BL46:BL54,$BF$58)","v":0},{"$f":"COUNTIF(BM46:BM54,$BF$58)","v":0},{"$f":"COUNTIF(BN46:BN54,$BF$58)","v":0},{"$f":"COUNTIF(BO46:BO54,$BF$58)","v":0},{"$f":"COUNTIF(BP46:BP54,$BF$58)","v":0},{"$f":"COUNTIF(BQ46:BQ54,$BF$58)","v":0},{"$f":"COUNTIF(BR46:BR54,$BF$58)","v":0},{"$f":"COUNTIF(BS46:BS54,$BF$58)","v":0},{"$f":"COUNTIF(BT46:BT54,$BF$58)","v":0},{"$f":"COUNTIF(BU46:BU54,$BF$58)","v":0},{"$f":"COUNTIF(BV46:BV54,$BF$58)","v":0},{"$f":"COUNTIF(BW46:BW54,$BF$58)","v":0},{"$f":"COUNTIF(BX46:BX54,$BF$58)","v":0},{"$f":"COUNTIF(BY46:BY54,$BF$58)","v":0},{"$f":"COUNTIF(BZ46:BZ54,$BF$58)","v":0}]
[null,null,null,null,null,null,null,null,null,null,null,null,null,null,null,null,null,null,null,null,null,null,null,null,null,null,null,null,null,null,null,null,null,null,null,null,null,null,null,null,null,null,null,null,null,null,null,null,null,null,null,null,null,null,null,null,null,"K",{"$f":"COUNTIF(BG46:BG55,$BF$59)","v":0},{"$f":"COUNTIF(BH46:BH55,$BF$59)","v":0},{"$f":"COUNTIF(BI46:BI55,$BF$59)","v":0},{"$f":"COUNTIF(BJ46:BJ55,$BF$59)","v":0},{"$f":"COUNTIF(BK46:BK55,$BF$59)","v":0},{"$f":"COUNTIF(BL46:BL55,$BF$59)","v":0},{"$f":"COUNTIF(BM46:BM55,$BF$59)","v":0},{"$f":"COUNTIF(BN46:BN55,$BF$59)","v":0},{"$f":"COUNTIF(BO46:BO55,$BF$59)","v":0},{"$f":"COUNTIF(BP46:BP55,$BF$59)","v":0},{"$f":"COUNTIF(BQ46:BQ55,$BF$59)","v":0},{"$f":"COUNTIF(BR46:BR55,$BF$59)","v":0},{"$f":"COUNTIF(BS46:BS55,$BF$59)","v":0},{"$f":"COUNTIF(BT46:BT55,$BF$59)","v":0},{"$f":"COUNTIF(BU46:BU55,$BF$59)","v":0},{"$f":"COUNTIF(BV46:BV55,$BF$59)","v":0},{"$f":"COUNTIF(BW46:BW55,$BF$59)","v":0},{"$f":"COUNTIF(BX46:BX55,$BF$59)","v":0},{"$f":"COUNTIF(BY46:BY55,$BF$59)","v":0},{"$f":"COUNTIF(BZ46:BZ55,$BF$59)","v":0}]
[null,null,null,null,null,null,null,null,null,null,null,null,null,null,null,null,null,null,null,null,null,null,null,null,null,null,null,null,null,null,null,null,null,null,null,null,null,null,null,null,null,null,null,null,null,null,null,null,null,null,null,null,null,null,null,null,null,"V",{"$f":"COUNTIF(BG46:BG56,$BF$60)","v":0},{"$f":"COUNTIF(BH46:BH56,$BF$60)","v":0},{"$f":"COUNTIF(BI46:BI56,$BF$60)","v":0},{"$f":"COUNTIF(BJ46:BJ56,$BF$60)","v":0},{"$f":"COUNTIF(BK46:BK56,$BF$60)","v":0},{"$f":"COUNTIF(BL46:BL56,$BF$60)","v":0},{"$f":"COUNTIF(BM46:BM56,$BF$60)","v":0},{"$f":"COUNTIF(BN46:BN56,$BF$60)","v":0},{"$f":"COUNTIF(BO46:BO56,$BF$60)","v":0},{"$f":"COUNTIF(BP46:BP56,$BF$60)","v":0},{"$f":"COUNTIF(BQ46:BQ56,$BF$60)","v":0},{"$f":"COUNTIF(BR46:BR56,$BF$60)","v":0},{"$f":"COUNTIF(BS46:BS56,$BF$60)","v":0},{"$f":"COUNTIF(BT46:BT56,$BF$60)","v":4},{"$f":"COUNTIF(BU46:BU56,$BF$60)","v":0},{"$f":"COUNTIF(BV46:BV56,$BF$60)","v":0},{"$f":"COUNTIF(BW46:BW56,$BF$60)","v":0},{"$f":"COUNTIF(BX46:BX56,$BF$60)","v":0},{"$f":"COUNTIF(BY46:BY56,$BF$60)","v":0},{"$f":"COUNTIF(BZ46:BZ56,$BF$60)","v":0}]

{"sheet":"Kantelwals borden","index":5,"n_rows":20,"n_cols":10,"rows_kept":20,"cut":false,"hidden":true,"merged":[[3,7,4,7],[3,8,4,8],[3,9,4,9],[3,1,4,1],[3,2,4,2],[0,0,1,0],[0,1,1,6],[3,0,4,0],[3,3,4,3],[3,4,4,4],[3,5,4,5],[3,6,4,6]]}
[null,"Bij aan of afmelden storing Kantelwalsbord,\nklik in de betreffende cel onder de knop \"In storing\"."]
[]
["Sorteren","Sorteren","Sorteren",null,null,null,"Sorteren","Sorteren"]
["In storing","Locatie","Weg nummer","Richting","HM","DVK","Kantelwals bord naam","Soort","1e bord","2e bord"]
[]
["In Storing",{"$f":"C6&\" \"&D6&\" \"&E6&\" \"&F6","v":"A15 Li 42,670 "},"A15","Li","42,670",null,"MUS-A15L-42,880","L11-S29-16"]
["In Storing",{"$f":"C7&\" \"&D7&\" \"&E7&\" \"&F7","v":"A15 Li 43,010 "},"A15","Li","43,010",null,"MUS-A15L-43,227","L11-M04-16"]
["In Storing",{"$f":"C8&\" \"&D8&\" \"&E8&\" \"&F8","v":"A20 Re 37,290 "},"A20","Re","37,290",null,"RP 5 A20 L 37,400 MB","L11-M15"]
["In Storing",{"$f":"C9&\" \"&D9&\" \"&E9&\" \"&F9","v":"A20 Re 38,300 "},"A20","Re","38,300",null,"RP 4 A20 38,200 BBL","L11-M10",null,"2e"]
["In Storing",{"$f":"C10&\" \"&D10&\" \"&E10&\" \"&F10","v":"A27 Li 37,115 "},"A27","Li","37,115",null,"RP 1 27 36 930 MB R A01","A01-HB01","1e"]
[null,{"$f":"C11&\" \"&D11&\" \"&E11&\" \"&F11","v":"A15 Li 42,170 "},"A15","Li","42,170",null,"MUS-A15L-42,170","L11-M02-16"]
[null,{"$f":"C12&\" \"&D12&\" \"&E12&\" \"&F12","v":"A15 Re 39,660 "},"A15","Re","39,660",null,"MUS-A15R-39,580","L11-S29-16"]
[null,{"$f":"C13&\" \"&D13&\" \"&E13&\" \"&F13","v":"A15 Re 40,160 "},"A15","Re","40,160",null,"MUS-A15R-40,430","L11-M02-16"]
[null,{"$f":"C14&\" \"&D14&\" \"&E14&\" \"&F14","v":"A20 Li 37,300 "},"A20","Li","37,300",null,"RP 6 A20 L 37,400 BB","L11-M15"]
[null,{"$f":"C15&\" \"&D15&\" \"&E15&\" \"&F15","v":"A20 Li 38,300 "},"A20","Li","38,300",null,"RP 1 A20 38,450 MBL","L11-M12","1e"]
[null,{"$f":"C16&\" \"&D16&\" \"&E16&\" \"&F16","v":"A20 Li 38,300 "},"A20","Li","38,300",null,"RP 3 A20 38,200 MBL","L11-M10",null,"2e"]
[null,{"$f":"C17&\" \"&D17&\" \"&E17&\" \"&F17","v":"A20 Re 38,300 "},"A20","Re","38,300",null,"RP 2 A20 38,450 BBL","L11-M12","1e"]
[null,{"$f":"C18&\" \"&D18&\" \"&E18&\" \"&F18","v":"A27 Li 37,115 "},"A27","Li","37,115",null,"RP 3 27 37 400 MB R L11 A01","L11-HB03",null,"2e"]
[null,{"$f":"C19&\" \"&D19&\" \"&E19&\" \"&F19","v":"A27 Re 37,135 "},"A27","Re","37,135",null,"RP 2 27 36 930 BB R A01","A01-HB01","1e"]
[null,{"$f":"C20&\" \"&D20&\" \"&E20&\" \"&F20","v":"A27 Re 37,135 "},"A27","Re","37,135",null,"RP 4 27 37 400 BB R L11 A01","L11-HB03",null,"2e"]

{"sheet":"VRI's Den Haag","index":6,"n_rows":252,"n_cols":3,"rows_kept":252,"cut":false,"hidden":true,"merged":[[2,0,2,2],[0,0,1,0],[0,1,1,1]]}
[null,"Bij aan of afmelden storing klik in de betreffende cel onder de knop \"In storing\"."]
[]
["VERKEERSLICHTEN DATABASE\nWordt beheerd door: Verkeerskundige"]
["K-","NAAM","Beheerder"]
[2,"Elandstraat - Da Costastraat ","Aiko"]
[4,"Wouwermanstraat - Vermeerstraat","Kristine"]
[7,"Beeklaan vop","Kristine"]
[8,"Westduinweg - Jan van Houtstraat","Aiko"]
[10,"Laan van Meerdervoort - Tasmanstraat","Kristine"]
[13,"Paul Krugerlaan - Pretoriusstraat","Kristine"]
[14,"Prins Willemplein","Aiko"]
[15,"Vaillantlaan - Verspronckstraat","Frank"]
[51,"Laan van Meerdervoort - Waldeck Pyrmontkade","Kristine"]
[52,"Laan van Meerdervoort - Anna Paulownastraat","Aiko"]
[56,"Monstersestraat - 's-Gravenzandelaan","Aiko"]
[57,"Valkenbosplein","Aiko"]
[58,"Erasmusweg - Betje Wolffstraat","Rogier"]
[61,"Van Alkemadelaan - Wassenaarseweg","Kristine"]
[62,"Mauritskade - Alexanderstraat ","Aiko"]
[64,"Erasmusweg - Anna Bijnslaan","Rogier"]
[65,"Javastraat - Alexanderstraat","Aiko"]
[66,"Laan van Meerdervoort - Zoutmanstraat","Aiko"]
[67,"Laan van Nieuw Oost-Indië - Schenkkade","Jasper"]
[68,"Laan van Nieuw Oost-Indië - Bezuidenhoutseweg","Jasper"]
[69,"Willem Witsenplein","Jasper"]
[70,"Vaillantlaan - Hobbemastraat - Verspronckstraat","Frank"]
[71,"Van Alkemadelaan - Waalsdorperweg","Aiko"]
[74,"Leeghwaterplein - Neherkade","Jasper"]
[75,"Van Alkemadelaan -  'Frederikskazerne'","Aiko"]
[76,"Scheveningseweg - Duinstraat","Aiko"]
[77,"Juliana van Stolberglaan - Louise Henriëttestraat","Jasper"]
[78,"Laan van Meerdervoort - Goudenregenstraat","Aiko"]
[79,"Rijswijkseweg - Jan van der Heijdenstraat ","Frank"]
[80,"Rijswijkseweg - Van Musschenbroekstraat","Frank"]
[81,"Laan van Nieuw Oost-Indië - Theresiastraat","Kristine"]
[82,"Laan van Nieuw Oost-Indië - Juliana van Stolberglaan","Kristine"]
[83,"Jonckbloetplein ","Kristine"]
[84,"Copernicusplein ","Klaas-Jan"]
[87,"Laan van Meerdervoort - Fahrenheitstraat","Aiko"]
[90,"Laan van Nieuw Oost-Indië - Anna van Hannoverstraat","Jasper"]
[93,"Spui - Amsterdamse Veerkade","Frank"]
[96,"Binckhorstlaan - Mercuriusweg","Kristine"]
[97,"Binckhorstlaan - Maanweg","Kristine"]
[99,"Melis Stokelaan - Vrederustlaan","Jasper"]
[100,"Melis Stokelaan - Beresteinlaan","Jasper"]
[101,"Vaillantlaan - Parallelweg - Waldorpstraat","Frank"]
[102,"Vaillantlaan - Parallelweg - Waldorpstraat","Frank"]
[103,"Vaillantlaan - Hoefkade","Frank"]
[104,"Vaillantlaan - Van der Vennestraat ","Frank"]
[105,"Westduinweg - Duinstraat","Aiko"]
[109,"De la Reyweg - Kempstraat ","Rogier"]
[111,"Meppelweg - Leyweg","Klaas-Jan"]
[112,"Hoefkade - Koningstraat","Klaas-Jan"]
[113,"Mauritskade - Louis Couperusplein","Kristine"]
[114,"Piet Heinplein ","Aiko"]
[116,"Wassenaarseweg - Van Hogenhoucklaan","Klaas-Jan"]
[118,"Loosduinseweg - Noorderbeekdwarsstraat","Kristine"]
[120,"Laan Copes van Cattenburch - Bankastraat ","Aiko"]
[121,"Zoutmanstraat - Elandstraat ","Aiko"]
[122,"Meppelweg - Dedemsvaartweg","Klaas-Jan"]
[123,"Laan van Meerdervoort - Zonnebloemstraat","Aiko"]
[124,"Soestdijksekade - Vreeswijkstraat","Rogier"]
[125,"Hoflandplein","Aiko"]
[128,"Loosduinseweg -  Noord West Buitensingel","Rogier"]
[129,"Wassenaarseweg - Jozef Israëlsplein","Klaas-Jan"]
[130,"Laan van Meerdervoort - Conradkade","Klaas-Jan"]
[132,"Javastraat - Zeestraat","Kristine"]
[134,"Burgemeester Patijnlaan - Carnegielaan ","Aiko"]
[135,"Prinsegracht - Jan Hendrikstraat","Klaas-Jan"]
[137,"Vaillantplein","Frank"]
[138,"Prinsegracht - Brouwersgracht ","Rogier"]
[139,"Prinsegracht - Lijnbaan","Rogier"]
[140,"Groot Hertoginnelaan - Carnegielaan","Jasper"]
[145,"Middachtenweg - Guntersteinweg","Rogier"]
[147,"Hengelolaan - Dedemsvaartweg","Rogier"]
[148,"Loevesteinlaan - Hengelolaan","Klaas-Jan"]
[149,"Loevesteinlaan - Steenwijklaan","Klaas-Jan"]
[150,"Mauritskade - Denneweg","Kristine"]
[151,"Zuiderparklaan - Apeldoornselaan","Rogier"]
[152,"Driebergenstraat - Soestdijksekade ","Rogier"]
[155,"Escamplaan - Soestdijksekade","Rogier"]
[157,"Monnikendamplein","Rogier"]
[158,"Rijswijkseweg - Neherkade - Goudriaankade","Frank"]
[159,"Groot Hertoginnelaan - Koningin Emmakade","Jasper"]
[161,"Groot Hertoginnelaan - Conradkade","Klaas-Jan"]
[164,"Parallelweg - Jacob Catsstraat","Klaas-Jan"]
[165,"Laan van Meerdervoort - Aaltje Noorderwierstraat","Kristine"]
[168,"Kamperfoeliestraat - Mient","Kristine"]
[171,"Beeklaan - Weimarstraat","Kristine"]
[173,"Benoordenhoutseweg - Waalsdorperlaan","Klaas-Jan"]
[175,"De Savornin Lohmanplein - Thorbeckelaan","Aiko"]
[176,"De Savornin Lohmanplein - Groen van Prinstererlaan","Aiko"]
[177,"Meppelweg - Bouwlustlaan - Zichtenburglaan","Klaas-Jan"]
[179,"De Savornin Lohmanlaan - Machiel Vrijenhoeklaan","Kristine"]
[180,"Van Alkemadelaan - Maurits de Brauwweg","Kristine"]
[181,"Waldeck Pyrmontkade - Prins Hendrikstraat","Kristine"]
[182,"Waldeck Pyrmontkade - Elandstraat - Chasséstraat","Kristine"]
[183,"Koningin Emmaplein","Kristine"]
[184,"Kijkduinsestraat - Machiel Vrijenhoeklaan","Aiko"]
[186,"Loosduinseweg - Gaslaan","Aiko"]
[187,"Leyweg - Escamplaan","Rogier"]
[188,"Leyweg - Florence Nightingaleweg","Rogier"]
[189,"Hildebrandplein","Rogier"]
[191,"Erasmusweg - Troelstrakade","Rogier"]
[192,"Wassenaarseweg - Oostduinlaan","Klaas-Jan"]
[193,"Erasmusweg - Loevesteinlaan","Rogier"]
[195,"De la Reyweg - Dierenselaan","Klaas-Jan"]
[198,"Erasmusweg - Beresteinlaan","Rogier"]
[200,"Erasmusweg - Leyweg","Rogier"]
[201,"Bezuidenhoutseweg - Hofzichtlaan","Rogier"]
[202,"Hofzichtlaan - Diamanthorst","Rogier"]
[203,"Hofzichtlaan - Het Kleine Loo","Rogier"]
[204,"Hofzichtlaan - Aegonplein - Finnenburg","Rogier"]
[206,"Calandplein - Neherkade","Frank"]
[207,"Lorentzplein","Kristine"]
[210,"Hobbemaplein","Kristine"]
[212,"Kempstraat - Schalk Burgerstraat","Kristine"]
[213,"Van Alkemadelaan - Ruychrocklaan","Kristine"]
[214,"Javastraat - Frederikstraat","Aiko"]
[215,"Parallelweg - Fruitweg","Klaas-Jan"]
[216,"Fruitweg - Viaduktweg","Klaas-Jan"]
[217,"Troelstrakade - Fruitweg","Klaas-Jan"]
[218,"Melis Stokelaan - Anna Bijnslaan","Klaas-Jan"]
[219,"Melis Stokelaan - Moerweg","Klaas-Jan"]
[221,"Melis Stokelaan - Loevesteinlaan","Jasper"]
[223,"Melis Stokelaan - Dedemsvaartweg","Jasper"]
[224,"Javastraat - Nassauplein","Aiko"]
[225,"Erasmusplein","Rogier"]
[229,"Sportlaan - Daal en Bergselaan","Kristine"]
[230,"Loosduinseweg - Monstersestraat - Asmanweg","Frank"]
[232,"Almeloplein","Klaas-Jan"]
[234,"Loosduinseweg - Regentesselaan - Apeldoornselaan","Frank"]
[236,"Jurriaan Kokstraat - Marcelisstraat","Aiko"]
[237,"Thorbeckelaan - Appelstraat","Klaas-Jan"]
[238,"Veluweplein - Moerweg","Rogier"]
[240,"Jan van der Heijdenstraat - Pasteurstraat","Kristine"]
[241,"Vaillantlaan - Frans Halsstraat","Frank"]
[243,"Benoordenhoutseweg - Laan van Clingendael","Frank"]
[244,"Gevers Deynootweg - Zwolsestraat","Aiko"]
[245,"Gevers Deynootplein - Kurhausweg - Circusplein","Aiko"]
[246,"Gevers Deynootweg - Rotterdamsestraat","Aiko"]
[247,"Schedeldoekshaven - Nieuwe Haven","Frank"]
[249,"Schenkkade - Wilhelmina van Pruisenweg","Klaas-Jan"]
[250,"Maanweg - Regulusweg","Kristine"]
[251,"Monsterseweg - ' Parnassia' ","Aiko"]
[253,"Maanweg-Melkwegstraat","Kristine"]
[254,"Scheveningseweg - Frankenslag - Kanaalweg","Aiko"]
[255,"Sportlaan - Nieboerweg","Klaas-Jan"]
[257,"Van Alkemadelaan - Pompstationsweg","Aiko"]
[258,"Erasmusweg - Vrederustlaan","Rogier"]
[260,"Escamplaan - Dedemsvaartweg","Klaas-Jan"]
[261,"Houtwijklaan - Architect Berlagelaan","Klaas-Jan"]
[262,"Houtwijklaan - Hildo Kroplaan","Klaas-Jan"]
[263,"Escamplaan - Zichtenburglaan","Klaas-Jan"]
[264,"Azaleaplein","Aiko"]
[266,"Zwolsestraat - Harstenhoekweg","Aiko"]
[269,"Leyweg - Busstation Leyenburg","Rogier"]
[270,"Erasmusweg - Dedemsvaartweg","Rogier"]
[271,"Laan van Wateringseveld - Noordweg","Kristine"]
[272,"Laan van Wateringseveld - Oosteinde","Kristine"]
[273,"Laan van Wateringseveld - Middenweg","Kristine"]
[275,"Noord West Buitensingel - Zamenhofstraat","Kristine"]
[276,"Laan van Meerdervoort - Ockenburghstraat","Aiko"]
[280,"Statenlaan - Frederik Hendriklaan","Aiko"]
[281,"Prins Bernhardviadukt - Busplatform station Centraal","Aiko"]
[284,"Vreeswijkstraat - Renswoudelaan","Rogier"]
[285,"De Genestetlaan - Paets van Troostwijkstraat","Kristine"]
[288,"Het Kleine Loo - Reigersbergerweg","Klaas-Jan"]
[289,"Beethovenlaan - Pisuissestraat","Aiko"]
[291,"Apeldoornselaan - Dierenselaan","Klaas-Jan"]
[292,"Dedemsvaartweg - Zuidwoldestraat","Klaas-Jan"]
[294,"Laan van Meerdervoort - Regentesselaan","Klaas-Jan"]
[295,"Calandstraat - Van der kunstraat","Frank"]
[301,"Schenkkade - Schenkviaduct - Utrechtsebaan","Frank"]
[302,"Juliana van Stolberglaan - Utrechtsebaan","Jasper"]
[303,"Prins Clauslaan - Theresiastraat","Jasper"]
[304,"Bezuidenhoutseweg - Prins Clauslaan","Jasper"]
[305,"Benoordenhoutseweg - Boslaan","Frank"]
[306,"Schenkkade - Prinses Beatrixlaan","Frank"]
[307,"Juliana van Stolberglaan - Prinses Beatrixlaan","Frank"]
[308,"Prinses Beatrixlaan - Prinses Marijkestraat","Frank"]
[310,"Laan van Delfvliet - Afrit A4 Zuid","Aiko"]
[327,"Westvlietweg - Wijkerbrug","Frank"]
[328,"Westvlietweg - Kerkbrug","Frank"]
[331,"Oude Middenweg - Pijlkruidveld","Frank"]
[332,"Zoetermeerse Rijweg - Loire","Frank"]
[334,"Zoetermeerse Rijweg - Pijlkruidveld","Frank"]
[335,"Zoetermeerse Rijweg - Spieringdam","Frank"]
[337,"Donau - Laan van Leidschenveen","Frank"]
[340,"Jan Thijssenweg - Drievliet","Frank"]
[341,"Laan van Delfvliet - Oprit A4 Noord","Aiko"]
[345,"Poortweg - Rijswijkse Waterweg","Frank"]
[346,"Rijswijkse Landingslaan - Singel","Frank"]
[348,"Laan van Hoornwijck - Laan van 's-Gravenmade","Aiko"]
[351,"Laan van Hoornwijck - Laan van Ypenburg","Frank"]
[352,"Laan van Hoornwijck - Ypenburgse Boslaan","Frank"]
[353,"Nootdorpse Landingslaan - Laan van Nootdorp","Frank"]
[354,"Laan van Nootdorp - Weidevogellaan","Frank"]
[355,"Laan van Nootdorp - Ypenburgse Boslaan","Frank"]
[356,"Ypenburgse Stationsweg - Laan van Leidschenveen","Frank"]
[357,"Ypenburgse Stationsweg - Katschiplaan","Frank"]
[358,"Ypenburgse Stationsweg - Fregatsingel","Frank"]
[359,"Ypenburgse Stationsweg - Afrit A12","Frank"]
[360,"Viaduct afrit A12 Nootdorp","Frank"]
[361,"Brasserhoutweg - Dwarskade","Frank"]
[401,"Koningskade - Korte Voorhout","Frank"]
[402,"Koningskade - Zuid Hollandlaan","Frank"]
[403,"Koningskade - Dr. Kuyperstraat","Frank"]
[404,"Koningskade - Javastraat","Frank"]
[405,"Raamweg - Laan Copes van Cattenburch","Frank"]
[406,"Plesmanweg - Waalsdorperweg","Aiko"]
[408,"Bezuidenhoutseweg - Rijnstraat","Rogier"]
[409,"Lekstraat - Schedeldoekshaven","Frank"]
[410,"Lekstraat - Merwedestraat","Jasper"]
[411,"Binckhorstlaan - 'Centrale werkplaats KPN'","Jasper"]
[412,"Binckhorstlaan - Weteringkade","Jasper"]
[413,"George Maduroplein","Kristine"]
[414,"Bickhorstlaan-Supernovaweg","Kristine"]
[415,"Supernovaweg - Mercuriusweg","Kristine"]
[416,"Supernovaweg - Regulusweg - Zonweg","Kristine"]
[420,"Margaretha van Hennebergweg - Kraayensteinlaan","Kristine"]
[421,"Lippe-Biesterfeldweg - Kapelaan Meereboerweg","Kristine"]
[422,"Loosduinse Hoofdstraat - Lisztstraat","Kristine"]
[424,"Oude Haagweg - Groen van Prinstererlaan","Aiko"]
[426,"Oude Haagweg - Thorbeckelaan","Aiko"]
[429,"Loosduinseweg - Soestdijksekade","Aiko"]
[430,"Loosduinseweg - Zuiderparklaan","Aiko"]
[431,"Loosduinseweg - Fahrenheitstraat","Aiko"]
[501,"Ockenburghstraat - Beethovenlaan","Jasper"]
[502,"Loosduinse Hoofdstraat - Ockenburghstraat","Jasper"]
[503,"Escamplaan - De Werf","Rogier"]
[504,"Lozerlaan - Escamplaan","Rogier"]
[505,"Nieuweweg - Madepolderweg","Rogier"]
[556,"Lozerlaan - Meppelweg","Rogier"]
[557,"Lozerlaan - Hengelolaan","Rogier"]
[558,"Lozerlaan - 'Cirkelflat'","Rogier"]
[559,"Lozerlaan - Melis Stokelaan","Rogier"]
[560,"Lozerlaan - 'Sterflat'","Rogier"]
[561,"Lozerlaan - Erasmusweg","Rogier"]
[601,"Rijswijkseplein","Frank"]
[602,"Spaarneplein","Kristine"]
[603,"Rijswijkseweg - Waldorpstraat - Van Leeuwenhoekstraat","Kristine"]
[701,"Johan de Wittlaan - Adriaan Goekooplaan","Klaas-Jan"]
[702,"Johan de Wittlaan - President Kennedylaan","Klaas-Jan"]
[703,"President Kennedylaan - Stadhouderslaan","Klaas-Jan"]
[704,"Houtrustweg - President Kennedylaan - Conradkade","Klaas-Jan"]
[706,"Segbroeklaan - Fahrenheitstraat","Klaas-Jan"]
[707,"Segbroeklaan - Goudenregenstraat","Klaas-Jan"]
[708,"President Kennedylaan - Aart van der Goesstraat","Klaas-Jan"]
[709,"Johan De Wittlaan - Churchillplein","Klaas-Jan"]
["711M","Scheveningsweg - Professor B. M. Teldersweg","Klaas-Jan"]
["711S","Scheveningsweg - Professor B. M. Teldersweg","Klaas-Jan"]

{"sheet":"Totaal overzicht","index":7,"n_rows":38,"n_cols":2,"rows_kept":38,"cut":false,"hidden":true,"merged":[[0,0,0,2]]}
["Wensen lijst t.b.v. database storingen Bereik desken."]
[]
["Spitsstroken"]
[]
["Aantal spitsstroken",{"$f":"COUNTA(#REF!)","v":1}]
[]
["Drips Rijkswaterstaat"]
["Aantal drip's",146]
["Aantal drip's onderliggend",{"$f":"B8-(B10+B12+B13+B14+B15+B16+B17+B18+B19+B20+B21+B22)","v":10}]
["Aantal drip's N wegen",39]
["Aantal drip's A wegen",91]
["Aantal drip's A12",9]
["Aantal drip's A15",31]
["Aantal drip's N15",5]
["aantal drip's A16",15]
["Aantal drip's A20",15]
["Aantal drip's A27",1]
["Aantal drip's A29",4]
["Aantal drip's A4",12]
["Aantal drip's N3",2]
["Aantal drip's N11",2]
["Aantal drip's N44",1]
[]
["Drips Provincie"]
[]
[]
["Drips Gemeente Den haag"]
[]
[]
["VRI's"]
["Aantal VRI's & iVRI's",{"$f":"COUNTA(#REF!)","v":1}]
["Aantal VRI's",{"$f":"COUNTIF(#REF!,\"VRI\")","v":{"$error":"#REF!"}}]
["Aantal iVRI's",{"$f":"COUNTIF(#REF!,\"iVRI\")","v":{"$error":"#REF!"}}]
["Aantal provincie",{"$f":"COUNTIF(#REF!,\"Provincie\")","v":{"$error":"#REF!"}}]
["Aantal gemeente RWS",{"$f":"COUNTA(#REF!)","v":1}]
["Aantal gemeente Delft",{"$f":"COUNTIF(#REF!,\"Gemeente Delft\")","v":{"$error":"#REF!"}}]
["Aantal gemeente Den Haag",{"$f":"COUNTA('VRI''s Den Haag'!A5:A301)","v":248}]
["Aantal gemeente Rotterdam"]